Cogmind - Beta 12 X4 @@@ ROGUE MODE // 2022.10.09 @ 13:17:50 Player: cptwinky Result: Destroyed by S-43 Plague with Heavy Machine Gun Performance ------------- Evolutions (9) 4500 Regions Visited (35) 7000 Robots Destroyed (548) 2740 Value Destroyed (27302) 27302 Prototype IDs (97) 1940 Alien Tech Used (11) 2200 Bonus (27030) 27030 TOTAL SCORE: 72712 Bonus ------- High Alert Combat Kills 9013 Follower Combat Kills 6089 Entered Garrisons 1800 Used RIF Installer 4500 Aligned with FarCom 300 Met Zhirov 300 Scanned by Researcher 500 Pursued by Intercept 500 Met MAIN.C 5000 Friendly Fire -972 Cogmind --------- Core Integrity 0/1600 Matter 276/425 Energy 350/350 System Corruption 39% Temperature Cool (0) Movement Walking (120) Location -1/Command Parts ------- > --- POWER (2) -------- Matter Drive > --- PROPULSION (7) --- Centrium Leg > --- UTILITY (13) ----- Relay Coupler [Duelist] (25) > --- WEAPON (3) ------- (None) > --- INVENTORY (7) ---- Huge Storage Unit Matter Compressor (250) Compact HERF Cannon Enhanced Nova Cannon Peak State ------------ > --- POWER ------------ Micro Antimatter Reactor Reinforced Quantum Reactor > --- PROPULSION ------- Centrium Leg Centrium Leg High-density Centrium Leg High-density Centrium Leg High-density Centrium Leg High-density Centrium Leg High-density Centrium Leg > --- UTILITY ---------- Advanced Coolant Injector Huge Storage Unit Improved Targeting Computer Experimental Targeting Computer Advanced Melee Analysis Suite Advanced Target Analyzer Core Analyzer Armor Integrity Analyzer Quantum Capacitor Experimental Actuator Array Advanced Phase Shifter Experimental Thermal Shield > --- WEAPON ----------- Enhanced Nova Cannon Sigix Broadsword > --- INVENTORY -------- Quantum Reactor Matter Drive Biometal Heavy Treads Advanced Heavy Siege Treads Medium Storage Unit Matter Compressor Advanced Force Booster Improved Focal Shield Relay Coupler [Duelist] Advanced Component Analysis Suite Improved System Restoration Module Improved System Restoration Module Transdimensional Reconstructor Terrabomb Microwarp Drive Disruptor Cannon Compact HERF Cannon Enhanced Nova Cannon Advanced Datajack Advanced Remote Datajack Force Lance Force Lance [Rating: 222] Favorites ----------- Power Reinforced Quantum Reactor Engine Heavy Ion Engine Power Core Reinforced Fission Core Reactor Reinforced Quantum Reactor Propulsion Light Treads Treads Light Treads Leg Advanced Myomer Leg Wheel Armored Wheel Flight Unit Q-thruster Utility Huge Storage Unit Device Advanced Transmission Jammer Storage Huge Storage Unit Processor Experimental Targeting Computer Hackware Advanced Hacking Suite Protection Advanced Powered Armor Artifact Microwarp Drive Weapon KE Penetrator Energy Gun Beam Rifle Energy Cannon Enhanced Nova Cannon Ballistic Gun KE Penetrator Ballistic Cannon Improved Light Cannon Launcher Mini Grenade Launcher Special Weapon Improved Remote Datajack Impact Weapon Thunder Hammer Slashing Weapon Sigix Broadsword Piercing Weapon Force Lance Special Melee Weapon Datajack Build | -11 -10 -10 -9 -9 -9 -8 -8 -8 -8 -8 -7 -7 -7 -7 -6 -6 -5 -5 -5 -5 -5 -5 -5 -5 -4 -4 -4 -3 -3 -2 -2 -2 -2 -1 -1 ------- Run | Scr Mat Min Mat Min Exi Min Mat Gar Mat Gar Fac Gar Fac Gar Fac Gar Fac Was Fac Gar Fac Upp Upp Zhi Pro Fac Gar Res Gar Res Gar Qua Sec Acc Com Slots Evolved 18 | . . . 2 . . . 2 . . . 2 . . . 2 . 2 . . . . . . . . 2 . 2 . 2 . . . 2 . Power 1 | . . . . . . . . . . . . . . . . . 1 . . . . . . . . . . . . . . . . . . Propulsion 5 | . . . 1 . . . . . . . 1 . . . . . 1 . . . . . . . . . . 1 . . . . . 1 . Utility 11 | . . . 1 . . . 1 . . . 1 . . . 2 . . . . . . . . . . 2 . 1 . 2 . . . 1 . Weapon 1 | . . . . . . . 1 . . . . . . . . . . . . . . . . . . . . . . . . . . . . Parts Attached 771 | 3 14 10 16 1 32 8 9 11 34 14 13 22 17 27 4 19 30 5 11 37 25 5 6 10 31 9 70 4 9 51 26 34 43 35 76 Power 47 | . . 1 3 . 1 . 1 . . . 1 1 2 . . 1 3 1 . 6 . . . 1 2 . 1 . . . 4 3 2 5 8 Engine 13 | . . 1 3 . 1 . . . . . 1 1 1 . . . . . . 3 . . . . . . . . . . . 1 . 1 . Core 4 | . . . . . . . . . . . . . . . . . 1 . . . . . . . 1 . 1 . . . 1 . . . . Reactor 30 | . . . . . . . 1 . . . . . 1 . . 1 2 1 . 3 . . . 1 1 . . . . . 3 2 2 4 8 Propulsion 125 | 2 1 3 3 . 8 . 1 3 8 7 3 4 4 3 . 4 8 . 1 5 1 . . 1 5 . 2 . . 6 2 3 13 3 21 Treads 70 | 2 1 3 3 . 3 . . 3 8 7 3 4 3 3 . 4 8 . 1 5 1 . . 1 1 . 2 . . 2 . . . . 2 Leg 50 | . . . . . 5 . 1 . . . . . 1 . . . . . . . . . . . 1 . . . . 4 2 3 13 3 17 Wheel 4 | . . . . . . . . . . . . . . . . . . . . . . . . . 3 . . . . . . . . . 1 Hover . | . . . . . . . . . . . . . . . . . . . . . . . . . . . . . . . . . . . . Flight 1 | . . . . . . . . . . . . . . . . . . . . . . . . . . . . . . . . . . . 1 Utility 260 | . 3 2 4 1 6 . 4 . 11 1 5 6 2 10 4 5 10 2 6 17 9 . 2 2 9 7 39 2 6 15 10 10 9 15 26 Device 135 | . 2 2 . 1 1 . 1 . 4 1 2 3 1 6 2 5 7 1 5 9 4 . 2 1 3 6 20 1 . 9 5 4 4 4 19 Storage 7 | . 1 . 1 . . . . . 1 . . . . . . . . . . . . . . . 1 . . . . . . . . 2 1 Processor 20 | . . . . . 2 . 1 . . . . . . . 1 . . . . 3 2 . . . 2 . . . . . . 2 1 6 . Hackware 38 | . . . . . . . 1 . 1 . 1 1 1 2 1 . 2 . 1 3 1 . . . . 1 3 1 3 6 3 1 2 2 1 Protection 57 | . . . 3 . 3 . 1 . 5 . 2 2 . 2 . . 1 1 . 2 2 . . 1 3 . 16 . 3 . 2 3 . 1 4 Artifact 3 | . . . . . . . . . . . . . . . . . . . . . . . . . . . . . . . . . 2 . 1 Weapon 339 | 1 10 4 6 . 17 8 3 8 15 6 4 11 9 14 . 9 9 2 4 9 15 5 4 6 15 2 28 2 3 30 10 18 19 12 21 Energy Gun 7 | . 3 . 1 . . . . 1 . . . . . . . . . . . . . . . . 2 . . . . . . . . . . Energy Cannon 30 | . . . . . . . . . . . . . 1 . . . . . . . . . . 1 . . 4 . . 3 1 2 3 4 11 Ballistic Gun 165 | 1 4 3 1 . 13 4 3 4 10 4 2 7 5 9 . 8 6 1 3 6 9 2 2 3 8 1 13 . 2 13 3 6 7 2 . Ballistic Cannon 7 | . . . 3 . . . . . . . . . . . . . . . . . . . . . . 1 . . . 1 . 1 1 . . Launcher 37 | . 3 1 . . 1 4 . 3 3 1 . 3 2 1 . . 1 . . . 1 1 1 . 2 . 3 . . 1 2 . . 3 . Special Weapon 48 | . . . . . 1 . . . 1 . 1 1 . 3 . 1 1 1 1 2 3 1 . . 1 . 7 1 1 9 2 6 4 . . Impact Weapon 10 | . . . . . . . . . 1 1 . . 1 1 . . . . . 1 2 1 1 1 . . . . . . . . . . . Slashing Weapon 14 | . . . . . 1 . . . . . . . . . . . . . . . . . . . . . . . . . . 3 2 2 6 Piercing Weapon 5 | . . . . . . . . . . . . . . . . . . . . . . . . . . . . . . . . . . 1 4 Special Melee Weapon 16 | . . . 1 . 1 . . . . . 1 . . . . . 1 . . . . . . 1 2 . 1 1 . 3 2 . 2 . . Unidentified Prototypes 22 | . . 1 . . . . . . 1 . . . 5 . . . . . . . . . . 3 . . . . . 1 . 1 9 . 1 Corrupted Parts 1 | . . . . . . . . . . . . . . . . . . . . . . . . . . . . . . . . . . . 1 System Corruption 4 | . . . . . . . . . . . . . . . . . . . . . . . . . . . . . . . . . . . 4 Parts Lost 92 | . . . . . 17 . . . . . . . . . . 3 1 . . 7 . . . . . . 6 . . . . 6 11 7 34 Power 6 | . . . . . 1 . . . . . . . . . . . . . . . . . . . . . 1 . . . . . . 1 3 Propulsion 19 | . . . . . 6 . . . . . . . . . . . 1 . . . . . . . . . 1 . . . . . 2 . 9 Utility 47 | . . . . . 5 . . . . . . . . . . . . . . 6 . . . . . . 3 . . . . 5 7 4 17 Weapon 20 | . . . . . 5 . . . . . . . . . . 3 . . . 1 . . . . . . 1 . . . . 1 2 2 5 Highest Loss Streak 26 | . . . . . 8 . . . . . . . . . . 1 1 . . 4 . . . . . . 4 . . . . 3 3 6 26 To Critical Strikes 4 | . . . . . 3 . . . . . . . . . . . . . . . . . . . . . . . . . . . 1 . . Average Slot Usage (%) 89 | . 99 100 99 100 95 100 100 100 99 100 99 97 91 78 78 84 84 73 70 79 81 82 82 68 82 88 86 85 84 91 87 91 88 84 85 Engine 3 | . 14 14 10 11 10 11 6 . . . 5 7 6 . . . . . . 2 . . . . . . 2 . . . . 1 3 1 . Reactor 5 | . . . . . . . 2 9 9 9 1 . . 7 6 6 11 11 11 8 11 11 11 10 11 10 6 4 4 4 4 4 4 6 7 Treads 17 | . 28 28 33 33 24 . . 14 27 27 30 30 30 17 13 17 19 17 17 17 16 17 17 17 16 5 5 14 14 6 3 . . . . Leg 5 | . . . . . 6 33 27 12 . . . . . . . . . . . . . . . . . . . . . 13 18 26 25 25 25 Device 10 | . 13 14 11 11 6 . 9 9 8 9 14 12 7 6 11 13 8 5 4 11 6 5 5 5 6 9 11 9 9 15 12 14 14 16 15 Storage 7 | . 14 14 11 11 11 11 9 9 9 9 7 7 7 7 6 6 5 5 5 5 5 5 5 5 5 5 5 4 4 4 4 4 4 4 3 Processor 7 | . . . . . 2 11 1 9 9 9 7 7 7 7 6 6 5 5 5 7 11 11 11 11 11 10 10 9 9 8 8 11 14 20 20 Hackware 3 | . . . . . . . 7 . . . . . . . 6 6 7 2 . . 3 5 5 2 . 5 6 13 13 17 15 9 7 1 1 Protection 6 | . . . 11 11 10 11 9 9 9 9 7 7 7 7 6 6 5 5 5 4 5 5 5 7 9 10 8 9 9 4 5 7 3 . 1 Ballistic Gun 15 | . 13 27 11 . 13 21 27 26 26 26 22 22 22 22 20 19 16 15 16 16 15 16 15 . 16 13 14 9 9 8 1 2 1 . . Ballistic Cannon 1 | . . . 4 22 1 . . . . . . . . . . . . . . . . . . . . 1 . . . 1 4 1 . . . Naked Turns . | . . . . . . . . . . . . . . . . . . . . . . . . . . . . . . . . . . . . Heaviest Build 193 | 12 33 35 101 101 106 94 110 110 113 114 126 131 138 139 141 144 160 180 177 184 174 157 154 155 175 189 180 185 183 189 193 185 177 166 172 Greatest Support 220 | 40 40 40 60 60 80 60 60 60 60 60 80 80 80 150 150 150 173 168 170 170 157 157 157 157 157 36 143 143 143 180 180 180 188 220 220 Greatest Overweight (x) 12 | . . . 1 1 3 1 1 1 1 1 1 1 1 1 . 1 1 1 1 1 1 . . . 12 5 7 1 1 1 1 1 1 . 4 Average Overweight (x) . | . . . . 1 1 1 1 1 1 1 1 1 1 . . . . . 1 . . . . . . 4 5 1 1 . . . . . . Largest Inventory Capacity 27 | 8 15 15 25 25 25 25 25 25 25 25 25 25 25 25 25 25 25 25 25 25 25 25 25 25 25 25 25 25 25 25 25 25 27 27 27 Average Capacity 24 | 8 13 15 24 25 25 25 25 25 25 25 25 25 25 25 25 25 25 25 25 25 25 25 25 25 25 25 25 25 25 25 25 25 25 27 25 Most Carried 27 | 6 15 15 25 25 25 25 25 25 25 25 25 25 25 25 25 25 25 25 25 25 25 25 25 25 25 25 25 24 25 25 25 25 25 27 27 Average Carried 23 | 6 12 14 24 24 21 25 24 24 24 24 24 24 24 24 23 24 24 24 24 24 24 25 25 24 24 24 24 24 24 24 24 23 20 25 24 Final Capacity 27 | 8 15 15 25 25 25 25 25 25 25 25 25 25 25 25 25 25 25 25 25 25 25 25 25 25 25 25 25 25 25 25 25 25 27 27 7 Final Carried 27 | 6 15 15 25 25 25 25 25 25 25 25 25 24 24 25 24 25 25 25 24 25 25 25 25 25 25 25 25 24 25 25 24 24 23 27 4 Class Distribution -------------------- 19% | Scavenger-Gunner 17% | Scavenger-Mutant 17% | Bothacker-Gunner 8% | Botlord-Mutant 8% | Mutant 5% | Commander-Tank 3% | Scavenger-Tank 3% | Bothacker-Tank 3% | Bothacker-Mutant Dominant Class ---------------- Mutant | -10/Materials Mutant | -10/Mines Scavenger-Mutant | -9/Materials Scavenger-Mutant | -9/Mines Scavenger-Mutant | -9/Exiles Scavenger-Mutant | -8/Mines Scavenger-Tank | -8/Materials Scavenger-Gunner | -8/Garrison Scavenger-Gunner | -8/Materials Scavenger-Gunner | -8/Garrison Scavenger-Gunner | -7/Factory Scavenger-Gunner | -7/Garrison Scavenger-Gunner | -7/Factory Bothacker-Gunner | -7/Garrison Bothacker-Tank | -6/Factory Bothacker-Gunner | -6/Garrison Bothacker-Gunner | -5/Factory Bothacker-Gunner | -5/Waste Bothacker-Gunner | -5/Factory Scavenger-Tank | -5/Garrison Bothacker-Gunner | -5/Factory Bothacker-Gunner | -5/Upper Caves Bothacker-Gunner | -5/Upper Caves Bothacker-Mutant | -5/Zhirov Commander-Tank | -4/Proximity Caves Commander-Tank | -4/Factory Bothacker-Tank | -4/Garrison Botlord-Mutant | -3/Research Botlord-Mutant | -3/Garrison Botlord-Mutant | -2/Research Botlord-Mutant | -2/Garrison Botlord-Mutant | -2/Quarantine Botlord-Mutant | -2/Section 7 Hauler-Mutant | -1/Access Hauler-Gladiator | -1/Command Resources | -11 -10 -10 -9 -9 -9 -8 -8 -8 -8 -8 -7 -7 -7 -7 -6 -6 -5 -5 -5 -5 -5 -5 -5 -5 -4 -4 -4 -3 -3 -2 -2 -2 -2 -1 -1 ----------- Run | Scr Mat Min Mat Min Exi Min Mat Gar Mat Gar Fac Gar Fac Gar Fac Gar Fac Was Fac Gar Fac Upp Upp Zhi Pro Fac Gar Res Gar Res Gar Qua Sec Acc Com Matter Collected 21958 | 216 241 312 455 90 838 117 178 416 1044 752 452 718 257 1299 32 1217 1415 90 729 1640 325 343 259 52 1314 . 2312 119 98 1591 710 675 774 263 615 Remotely . | . . . . . . . . . . . . . . . . . . . . . . . . . . . . . . . . . . . . Salvage Created 29346 | . 635 366 1141 76 584 77 199 514 1400 596 425 770 447 1540 . 900 2507 . 668 1598 325 90 111 125 1274 103 2279 . . 1675 530 1194 1570 776 4851 Parts 1384 | . 61 11 58 8 69 27 16 25 88 37 19 52 33 46 . 38 107 . 29 59 14 9 8 3 42 6 98 . . 83 12 54 56 33 183 Haulers Intercepted 17 | . 1 . 5 . . . 1 . 4 . . . 1 . . . 5 . . . . . . . . . . . . . . . . . . Recyclers Shooed 18 | . 1 . 1 . . . 1 . . . . . . . . . 8 . 2 . . . . . 1 . . . . 3 . . . 1 . Parts Field Recycled 14 | . . . . . . . . . . . . . . . . . . . . . . . . . . . . . . . . . . 14 . Retrieved Matter 228 | . . . . . . . . . . . . . . . . . . . . . . . . . . . . . . . . . . 228 . Parts Self-Destructed 92 | . . . . . . . . . . . . . . . . . . . . . . 12 7 . 73 . . . . . . . . . . Prevented 2 | . . . . . . . . . . . . . . . . . . . . . . . 1 1 . . . . . . . . . . . Kills | -11 -10 -10 -9 -9 -9 -8 -8 -8 -8 -8 -7 -7 -7 -7 -6 -6 -5 -5 -5 -5 -5 -5 -5 -5 -4 -4 -4 -3 -3 -2 -2 -2 -2 -1 -1 ------- Run | Scr Mat Min Mat Min Exi Min Mat Gar Mat Gar Fac Gar Fac Gar Fac Gar Fac Was Fac Gar Fac Upp Upp Zhi Pro Fac Gar Res Gar Res Gar Qua Sec Acc Com Combat Hostiles Destroyed 470 | . 17 13 20 2 4 12 2 13 29 17 6 23 12 25 . 12 22 . 11 24 4 5 6 . 11 2 42 . . 26 14 15 18 12 51 Melee 52 | . . . . . 1 . . . . . . . . . . . . . . 1 . . . . . . . . . . . 9 11 2 28 Guns 259 | . 9 11 16 . . 1 2 7 21 10 6 14 4 23 . 12 22 . 11 23 4 1 1 . 6 2 28 . . 15 . 4 4 2 . Cannons 37 | . . . 4 2 . . . . . . . . . . . . . . . . . . . . . . . . . 6 6 1 2 5 11 AOE 102 | . 8 2 . . 3 11 . 6 8 7 . 9 8 2 . . . . . . . 4 5 . 5 . 9 . . 4 8 . . 3 . Classes Destroyed 25 | . 7 2 3 . 2 1 . 1 2 1 . 1 1 1 . 2 . . . 1 . . . . . . . . . . . . . . . Worker 11 | . . 2 . 1 . . . . 1 . . . . . . . . . 1 . 1 . . . . . . . . 2 . 1 1 . 1 Builder 14 | . 2 . . 1 . . 3 . . . . . 1 . . . 4 . . . 1 . . . . . . . . 2 . . . . . Tunneler 3 | . . . . . . 1 . . . . . . 1 . . . 1 . . . . . . . . . . . . . . . . . . Hauler 17 | . 1 . 5 . . . 1 . 4 . . . 1 . . . 5 . . . . . . . . . . . . . . . . . . Recycler 21 | . 2 2 3 . . . . . . . 1 . 1 . . . 6 . . . 1 . . . 2 . . . . 1 . . . 1 1 Mechanic 2 | . . . 1 . . . . . . . . . 1 . . . . . . . . . . . . . . . . . . . . . . Operator 5 | . 1 . . . . . . . 1 . . . . . . . 2 . . 1 . . . . . . . . . . . . . . . Turret 2 | . . . . . 2 . . . . . . . . . . . . . . . . . . . . . . . . . . . . . . Watcher 13 | . 2 . 1 . . . . . 1 . 1 . . . . . 1 . . . . . . . 2 . . . . 1 . . 2 . 2 Swarmer 97 | . 9 3 6 . . 12 . . 7 4 . 10 . 6 . . 7 . . . 2 4 5 . 5 1 3 . . 4 2 . 1 . 6 Cutter 7 | . . . . . . . . . . . . . . 1 . . . . . . . . . . . . 4 . . . 2 . . . . Saboteur 8 | . . . . . . . . . . . . 3 . . . . . . . . . . . . . . 3 . . . . . . 1 1 Grunt 174 | . 8 . 7 2 . . . 10 11 7 2 1 . 14 . 5 8 . 3 15 1 . 1 . 2 1 14 . . 12 5 3 10 4 28 Brawler 11 | . . . . . . . . . 1 1 . 1 . . . 1 1 . . 1 . . . . 1 . 2 . . . . . . 1 1 Duelist 11 | . . . 1 . . . . 1 . . . . . . . 1 . . . . . . . . . . 1 . . . 1 . . 2 4 Protector 2 | . . . . . . . . . . . . . 2 . . . . . . . . . . . . . . . . . . . . . . Sentry 42 | . . . 6 . . . 2 1 5 4 3 5 . 2 . 2 1 . 1 1 . . . . 1 . 4 . . . . . 2 1 1 Specialist 11 | . . . . . . . . 1 4 . . 1 3 . . 1 . . . . . . . . . . 1 . . . . . . . . Hunter 31 | . . . . . . . . . 1 . . . 3 2 . . . . . 2 . . . . 2 . 4 . . 1 3 8 3 . 2 Programmer 50 | . . . . . . . . . . 1 1 2 4 . . . 5 . 7 . 1 1 . . . . 3 . . 8 . 4 2 3 8 Heavy 2 | . . . . . . . . . . . . . . . . . . . . 2 . . . . . . . . . . . . . . . Behemoth 8 | . . . . . . . . . . . . . . . . 2 . . . 3 . . . . . . 1 . . 1 1 . . . . Striker 2 | . . . . . . . . . . . . . . . . 1 . . . . . . . . . . 1 . . . . . . . . Zionite 8 | . . . . . 8 . . . . . . . . . . . . . . . . . . . . . . . . . . . . . . Assembled 13 | . . 10 . . 3 . . . . . . . . . . . . . . . . . . . . . . . . . . . . . . Thug 1 | . . . . 1 . . . . . . . . . . . . . . . . . . . . . . . . . . . . . . . Savage 1 | . . . . . . . . . . . . . . . . . . . . . . . . . . . 1 . . . . . . . . Best Kill Streak 13 | . 4 7 5 2 3 4 5 6 5 7 3 4 12 4 . 4 13 . 3 5 3 4 5 . 4 2 6 . . 6 5 2 5 7 13 Combat Bots Only 12 | . 4 3 5 2 3 4 1 6 4 7 2 4 9 4 . 4 4 . 2 5 3 4 5 . 4 2 6 . . 5 5 2 5 6 12 Max Kills in Single Turn 5 | . 3 2 2 1 3 4 2 2 3 4 1 3 5 2 . 1 2 . 1 1 2 3 4 . 2 1 3 . . 3 2 2 2 2 1 Gunslinging 2 | . . . 1 . . . . . . . . . . 1 . . 1 . . . 1 . . . . . 2 . . 1 . 1 1 . . Exploded 4 | . 3 2 . . 3 4 . 2 3 4 . 3 3 1 . . . . . . . 3 4 . 2 . 3 . . 2 2 . . 1 . Melee 1 | . . . . . 1 . . . . . . . . . . . . . . 1 . . . . . . . . . . . 1 1 1 1 Uniques/NPCs Destroyed 4 | . . . . . 4 . . . . . . . . . . . . . . . . . . . . . . . . . . . . . . 8R-AWN (-9/Exiles) EX-HEX (-9/Exiles) EX-BIN (-9/Exiles) EX-DEC (-9/Exiles) Combat | -11 -10 -10 -9 -9 -9 -8 -8 -8 -8 -8 -7 -7 -7 -7 -6 -6 -5 -5 -5 -5 -5 -5 -5 -5 -4 -4 -4 -3 -3 -2 -2 -2 -2 -1 -1 -------- Run | Scr Mat Min Mat Min Exi Min Mat Gar Mat Gar Fac Gar Fac Gar Fac Gar Fac Was Fac Gar Fac Upp Upp Zhi Pro Fac Gar Res Gar Res Gar Qua Sec Acc Com Damage Taken 43048 | . 154 284 600 68 1944 200 45 389 925 311 610 738 296 1697 . 1061 1440 . 912 2712 448 44 26 . 979 61 3834 269 . 2472 781 3097 5457 1863 9331 Core 4137 | . 30 63 28 . 268 30 . 157 82 16 79 122 17 116 . 141 43 . 24 246 25 . . . 44 . 158 . . 79 92 178 500 98 1501 Absorbed by Shields 5197 | . 66 106 239 26 149 . . 49 . 16 . 233 . 414 . 449 39 . . 975 . . . . . 23 1479 98 . 575 261 . . . . Reduced by Siege Mode 184 | . . . . . . . . . . . . . . . . . . . . 28 10 . . . 34 . 52 . . 56 4 . . . . Redirected to Shielding 416 | . . . . . . . . . . . . . . . . . . . . . . . . . 54 . 128 . . . . . . 116 118 Regen/Repaired (Parts) 6166 | . . . . . . . . . 17 . . 51 4 . . . 380 . 563 . . . . . 143 . 602 243 . 627 . 720 1034 824 958 Core Remaining (%) 64 | 100 . 62 . . . 18 . . . 53 . . . 52 . 83 . . . . . . . . 61 . 86 . 100 . . . 32 . . Volleys Fired 1444 | . 42 34 62 11 86 6 10 37 65 31 30 37 11 85 . 80 78 7 41 89 20 4 7 1 53 6 125 2 6 130 35 39 45 36 93 Largest 3 | . 2 2 2 2 2 2 3 3 3 3 3 3 3 3 . 3 3 1 3 3 3 3 3 1 3 3 3 1 1 3 2 3 3 1 1 Hottest 154 | . 79 46 79 78 53 46 79 79 79 78 78 90 102 85 . 85 90 5 90 96 99 99 99 94 99 99 99 7 30 120 154 120 120 120 120 Shots Fired 2980 | . 78 66 124 20 133 7 30 85 173 71 82 95 33 196 . 198 228 8 108 240 49 8 13 1 129 12 289 2 6 209 42 60 54 37 94 Gun 2466 | . 72 64 98 . 128 2 30 80 162 67 78 86 27 180 . 196 225 1 107 234 44 6 9 . 120 9 253 . 1 134 4 34 14 1 . Cannon 283 | . . . 26 20 . . . . . . . . . . . . . . . . . . . 1 . 3 17 . . 33 21 11 29 28 94 Launcher 87 | . 6 2 . . 1 5 . 5 8 4 . 4 6 2 . . . . . . 1 2 4 . 3 . 12 . . 4 10 . . 8 . Special 144 | . . . . . 4 . . . 3 . 4 5 . 14 . 2 3 7 1 6 4 . . . 6 . 7 2 5 38 7 15 11 . . Kinetic 2497 | . 36 64 96 20 128 2 30 80 162 67 78 86 27 180 . 196 225 1 107 234 44 6 9 . 120 12 253 . 1 156 21 41 14 1 . Thermal 158 | . 36 . 28 . 4 . . . . . . . . . . . . . . . . . . . . . . . . 6 . 2 18 24 40 Explosive 87 | . 6 2 . . 1 5 . 5 8 4 . 4 6 2 . . . . . . 1 2 4 . 3 . 12 . . 4 10 . . 8 . Electromagnetic 98 | . . . . . . . . . . . . . . . . . . . . . . . . 1 . . 17 . . 5 4 2 11 4 54 Robot Hit Streak 64 | . 9 7 48 8 14 3 15 20 36 22 12 14 14 25 . 43 33 7 23 64 12 13 4 2 15 4 19 10 15 28 11 8 12 10 14 Robot Miss Streak 7 | . 3 7 3 2 5 . 2 3 2 2 2 2 1 5 . 3 5 1 1 2 1 1 1 . 4 1 2 . . 3 3 3 2 2 2 Penetration Max 2 | . . . . . 1 . . . 1 . 1 1 . 1 . 1 1 . 1 1 1 . . . 2 . 1 . . 1 . 2 . 1 . Secondary Targets 46 | . . 1 4 . . . . 1 3 1 1 2 . 6 . 2 2 . 1 4 2 . . . 1 . 8 . . 4 . 1 2 . . Max Gunslinging Chain 2 | . . 1 1 . . . . 1 1 1 1 1 . 2 . 1 1 . 1 1 1 . . . 1 . 2 . . 1 . 1 1 . . Capacitor 51 | . . . . . . . . . . . . . . . . . . . . . . . . . . . . . . . . . . 6 45 Shots Hit Robots 2372 | . 44 31 94 13 121 2 20 51 119 46 60 69 17 149 . 170 166 7 77 190 40 4 6 7 95 5 215 6 5 165 37 80 60 22 179 Core Hits 1067 | . 31 24 38 5 38 11 9 30 61 28 18 41 35 59 . 46 69 . 25 59 14 6 7 1 40 3 91 . . 73 44 27 24 29 81 Critical Kills 38 | . . 1 . . 4 . . . 1 2 . . . 3 . . 3 . 2 2 . . . . 7 . 3 . . 2 . 3 3 1 1 Critical Parts Destroyed 60 | . 1 . . . 9 . . 2 1 . 2 1 . 3 . 6 4 . 2 6 1 . . 1 3 1 6 . . 3 . 6 2 . . Critical Strikes 138 | . 2 1 6 1 17 . . 2 2 2 2 2 . 7 . 8 7 . 4 9 1 . . 1 10 1 10 . . 5 . 11 8 1 18 Burn 7 | . 1 . 6 . . . . . . . . . . . . . . . . . . . . . . . . . . . . . . . . Meltdown 1 | . . . . . . . . . . . . . . . . . . . . . . . . . . . . . . . . . . . 1 Destroy 102 | . 1 1 . . 14 . . 2 2 2 2 2 . 7 . 8 7 . 4 9 . . . . 10 1 10 . . 5 . 9 5 1 . Blast 1 | . . . . 1 . . . . . . . . . . . . . . . . . . . . . . . . . . . . . . . Corrupt 3 | . . . . . . . . . . . . . . . . . . . . . . . . . . . . . . . . . . . 3 Smash 2 | . . . . . . . . . . . . . . . . . . . . . 1 . . 1 . . . . . . . . . . . Sever 13 | . . . . . 3 . . . . . . . . . . . . . . . . . . . . . . . . . . 2 3 . 5 Impale 9 | . . . . . . . . . . . . . . . . . . . . . . . . . . . . . . . . . . . 9 Melee Attacks 397 | . . . . . 43 . . . 2 1 . . . 9 . . 2 . . 2 18 2 9 6 22 . . 6 . 6 3 52 67 7 140 Thermal 1 | . . . . . . . . . . . . . . . . . . . . . . . . . . . . . . . . . . . 1 Impact 46 | . . . . . . . . . 2 1 . . . 9 . . . . . 2 18 2 9 3 . . . . . . . . . . . Slashing 225 | . . . . . 20 . . . . . . . . . . . . . . . . . . . . . . . . . . 52 60 7 86 Piercing 53 | . . . . . . . . . . . . . . . . . . . . . . . . . . . . . . . . . . . 53 Sneak Attacks 61 | . . . . . 23 . . . . . . . . . . . 2 . . . 1 . . 3 22 . . 1 . 2 . 2 3 . 2 Combat Hostiles 4 | . . . . . . . . . . . . . . . . . . . . . . . . . . . . . . . . 2 2 . . Follow-up Attacks 33 | . . . . . . . . . . . . . . . . . . . . . . . . . . . . . . . . . . . 33 Damage Inflicted 78144 | . 1366 760 1670 342 2111 732 374 1339 2838 1492 1044 1815 1725 3227 . 3408 4852 22 2508 4923 1115 442 529 331 2174 124 7308 . . 5366 3154 3841 3183 2154 11875 Guns 39791 | . 698 538 1242 . 1194 18 367 796 2060 850 1010 1202 319 2866 . 3408 4693 22 2499 4865 989 61 97 . 1551 124 4889 . . 2646 24 459 258 46 . Cannons 7996 | . . . 372 309 . . . . . . . . . . . . . . . . . . . 17 . . 664 . . 1695 958 267 388 501 2825 Explosions 13703 | . 629 220 . . 126 714 . 543 736 641 . 610 1392 327 . . 46 . . . 26 381 432 . 623 . 1752 . . 994 2172 . . 1339 . Melee 16104 | . . . . . 788 . . . . . . . . 34 . . . . . . 100 . . 314 . . . . . . . 3036 2519 268 9045 Ramming 547 | . 39 2 56 33 . . 7 . 42 1 34 3 14 . . . 113 . 9 58 . . . . . . 3 . . 31 . 79 18 . 5 Kinetic 42412 | . 442 538 1194 309 1194 18 367 796 2060 850 1010 1202 319 2866 . 3408 4693 22 2499 4865 989 61 97 . 1551 124 4889 . . 4258 852 635 258 46 . Thermal 1949 | . 256 . 420 . 3 . . . . . . . . . . . 46 . . . . . . . . . . . . . . . . 374 850 Explosive 13657 | . 629 220 . . 126 714 . 543 736 641 . 610 1392 327 . . . . . . 26 381 432 . 623 . 1752 . . 994 2172 . . 1339 . Electromagnetic 3475 | . . . . . . . . . . . . . . . . . . . . . . . . 17 . . 664 . . 83 130 91 388 127 1975 Impact 448 | . . . . . . . . . . . . . . 34 . . . . . . 100 . . 314 . . . . . . . . . . . Slashing 13199 | . . . . . 788 . . . . . . . . . . . . . . . . . . . . . . . . . . 3036 2519 268 6588 Piercing 2457 | . . . . . . . . . . . . . . . . . . . . . . . . . . . . . . . . . . . 2457 Highest Corruption 39 | . . . . . 7 . . . . . 3 3 3 3 . . 8 14 15 11 11 12 12 12 12 . 10 . . 6 . 7 14 7 39 Average Corruption 7 | . . . . . 5 . . . . . 2 3 3 3 . . 4 12 13 11 11 11 12 12 7 . 5 . . 4 . 6 8 6 10 Corruption Purged 44 | . . . . . . . . . . . . . . . . . 7 . 5 . . . . . 12 . . . . 6 . . . . 14 Corruption Blocked . | . . . . . . . . . . . . . . . . . . . . . . . . . . . . . . . . . . . . Effects 593 | . . . . . 3 . . . . . . 25 18 33 . . 11 13 63 95 28 24 32 11 53 . 44 . . 13 . 23 42 14 48 Message Errors 141 | . . . . . . . . . . . . 4 5 2 . . 3 6 15 33 6 10 5 4 11 . 7 . . 5 . 4 9 1 11 Matter Fused 150 | . . . . . 2 . . . . . . 13 3 8 . . 1 2 16 22 7 6 12 2 16 . 10 . . 2 . 5 10 4 9 Heat Flow Errors 63 | . . . . . . . . . . . . 1 1 5 . . . 1 4 12 2 1 8 2 7 . 5 . . 2 . 3 4 1 4 Energy Discharges 72 | . . . . . . . . . . . . 3 3 7 . . 4 1 7 5 2 3 2 2 6 . 7 . . 2 . 4 7 4 3 Parts Rejected 6 | . . . . . . . . . . . . . 1 . . . . . 1 . . . . . . . 1 . . . . . 1 . 2 Data Loss (minor) 85 | . . . . . 1 . . . . . . 2 3 6 . . 1 2 11 9 7 3 4 . 9 . 6 . . . . 5 8 2 6 Data Loss (major) 28 | . . . . . . . . . . . . . 1 3 . . 2 . 4 5 1 1 1 1 2 . 1 . . 1 . 1 2 . 2 Misfires 20 | . . . . . . . . . . . . 2 . 1 . . . 1 3 3 . . . . 2 . 5 . . 1 . . . 1 1 Alerts 10 | . . . . . . . . . . . . . 1 1 . . . . . 1 2 . . . . . 1 . . . . 1 1 1 1 Misdirections 10 | . . . . . . . . . . . . . . . . . . . . 1 . . . . . . . . . . . . . . 9 Weapon Failures 8 | . . . . . . . . . . . . . . . . . . . 2 4 1 . . . . . 1 . . . . . . . . Overload Shots . | . . . . . . . . . . . . . . . . . . . . . . . . . . . . . . . . . . . . Overflow Damage 1929 | . 18 21 . . 14 49 . 16 34 17 13 26 17 . . . . . . . 100 1 16 123 4 . 16 . . 36 9 251 322 46 780 Projectiles 38 | . . . . . . . . . . . . . . . . . . . . . . . . . . . . . . 29 9 . . . . Explosions 286 | . 18 21 . . . 49 . 16 34 17 . 26 17 . . . . . . . . 1 16 . 4 . 16 . . 5 . . . 46 . Melee 1605 | . . . . . 14 . . . . . 13 . . . . . . . . . 100 . . 123 . . . . . 2 . 251 322 . 780 Knockbacks 17 | . . . 2 4 . . . . . . 1 . . . . . 1 . . 1 . . . . . . . . . 5 3 . . . . Impact 4 | . . . 1 . . . . . . . 1 . . . . . 1 . . 1 . . . . . . . . . . . . . . . Kinetic 13 | . . . 1 4 . . . . . . . . . . . . . . . . . . . . . . . . . 5 3 . . . . Secondary . | . . . . . . . . . . . . . . . . . . . . . . . . . . . . . . . . . . . . Self-Inflicted Damage 275 | . 25 65 . . . 59 . . . . . . . . . . . . . . 40 . 1 . . . . . . . . . . 85 . Shots 9 | . 1 2 . . . 2 . . . . . . . . . . . . . . 1 . 1 . . . . . . . . . . 2 . Rammed 43 | . 6 1 7 4 . . . . 5 1 2 2 1 . . . 6 . 3 4 . . . . . . 1 . . . . . . . . Targets Rammed 61 | . 6 1 10 6 . . 1 . 5 1 2 2 2 . . . 7 . 3 5 . . . . . . 1 . . 3 . 3 2 . 1 Kicked 10 | . . . . . . . 1 . . . . . . . . . . . . . . . . . . . . . . 3 . 3 2 . 1 Crushed 8 | . . . 3 2 . . . . . . . . 1 . . . 1 . . 1 . . . . . . . . . . . . . . . Highest Temperature 393 | . 90 47 209 89 60 20 69 125 156 158 244 300 129 393 . 294 267 165 316 388 141 233 153 236 249 270 375 11 . 187 163 192 184 195 366 Average Temperature 86 | . 36 22 59 41 16 5 29 44 46 53 87 94 46 107 . 110 98 79 105 141 45 116 61 102 92 138 120 9 . 48 55 93 57 51 111 Received Heat Transfer 6016 | . 16 87 183 49 . . 18 196 297 54 252 161 . 563 . 294 252 . 183 553 102 . . . 145 15 776 59 . 382 56 81 459 54 729 Effects 12 | . . . . . . . . . . . . 3 . . . . . . . 5 . . . . . . 4 . . . . . . . . Energy Bleed 5 | . . . . . . . . . . . . 1 . . . . . . . 2 . . . . . . 2 . . . . . . . . Interference 6 | . . . . . . . . . . . . 2 . . . . . . . 2 . . . . . . 2 . . . . . . . . Damage (minor) 1 | . . . . . . . . . . . . . . . . . . . . 1 . . . . . . . . . . . . . . . Siege Activations 23 | . . . . . . . . . . . . . . . . . 1 . 2 4 1 . . . 2 1 5 . . 6 1 . . . . Total Turns 406 | . . . . . . . . . . . . . . . . . 11 . 41 64 8 . . . 50 14 95 . . 109 14 . . . . Longest Duration 40 | . . . . . . . . . . . . . . . . . 11 . 28 22 8 . . . 25 14 40 . . 22 14 . . . . Robots Corrupted 19 | . . . . . . . . . . . . . . . . . . . . . . . . . . . 5 . . 1 . 1 1 . 11 Combat Hostiles 19 | . . . . . . . . . . . . . . . . . . . . . . . . . . . 5 . . 1 . 1 1 . 11 Parts Fried 31 | . . . . . . . . . . . . . . . . . . . . . 5 . . . . . 6 . . 1 . 2 2 . 15 Impact Corruptions 7 | . . . . . . . . . . . 1 . . . . . . . . . 1 . . 3 . . . . . 1 . 1 . . . Robots Melted 1 | . . . . . . . . . . . . . . . . . . . . . . . . . . . . . . . . . . . 1 Combat Hostiles 1 | . . . . . . . . . . . . . . . . . . . . . . . . . . . . . . . . . . . 1 Parts Melted 13 | . . . 3 . . . . 1 . . . 1 1 . . . 1 . . 4 . . . . . . . . . . . . . . 2 Heat Transferred 3083 | . 703 . 1332 . 27 . . . . . . . . . . . 50 . . . . . . . . . . . . . . . . 296 675 Parts Sabotaged 13 | . . . . . . . . . . . . . . . . . . . . . . . . . . . . . . . . . 3 . 10 Parts Stolen . | . . . . . . . . . . . . . . . . . . . . . . . . . . . . . . . . . . . . Parts Stripped . | . . . . . . . . . . . . . . . . . . . . . . . . . . . . . . . . . . . . Power Chain Reactions . | . . . . . . . . . . . . . . . . . . . . . . . . . . . . . . . . . . . . Missiles Intercepted . | . . . . . . . . . . . . . . . . . . . . . . . . . . . . . . . . . . . . Alert | -11 -10 -10 -9 -9 -9 -8 -8 -8 -8 -8 -7 -7 -7 -7 -6 -6 -5 -5 -5 -5 -5 -5 -5 -5 -4 -4 -4 -3 -3 -2 -2 -2 -2 -1 -1 ------- Run | Scr Mat Min Mat Min Exi Min Mat Gar Mat Gar Fac Gar Fac Gar Fac Gar Fac Was Fac Gar Fac Upp Upp Zhi Pro Fac Gar Res Gar Res Gar Qua Sec Acc Com Peak Influence 2053 | . 345 141 292 66 . 204 90 437 410 771 404 1201 919 1787 944 1314 1339 483 444 1516 1219 . . . . 419 2053 1333 1386 1024 1683 946 1201 1020 1729 Initial 1154 | . . 44 . 11 . . 11 58 212 138 404 46 630 643 938 240 689 468 338 261 719 . . . . 137 154 1154 999 779 764 946 411 714 556 Average 623 | . 165 15 135 12 . 135 53 251 143 540 163 709 623 1262 854 849 721 479 349 911 966 . . . . 209 948 1220 1225 823 1431 566 947 862 1087 Maximum Alert Level 5 | . 1 . 1 . . 1 . 2 2 3 2 4 3 5 3 4 4 2 2 4 4 . . . . 2 5 4 4 3 5 3 4 3 5 Low Security (%) 25 | 100 58 100 74 100 . 75 100 36 68 11 71 7 . . . . . . . . . . . . . 63 2 . . . . . . . . Level 1 12 | . 41 . 25 . . 24 . 54 29 17 22 4 . . 14 8 . . 70 10 . . . . . 14 6 . . . . 5 . . . Level 2 20 | . . . . . . . . 9 2 55 5 29 83 4 . 29 63 100 29 27 . . . . . 21 36 . . 10 . 76 18 . 18 Level 3 21 | . . . . . . . . . . 16 . 45 16 32 85 42 21 . . 13 87 . . . . . 10 . 3 89 26 18 47 100 31 Level 4 15 | . . . . . . . . . . . . 13 . 32 . 19 14 . . 48 12 . . . . . 32 100 96 . 33 . 33 . 33 Level 5 3 | . . . . . . . . . . . . . . 31 . . . . . . . . . . . . 11 . . . 40 . . . 16 High Security . | . . . . . . . . . . . . . . . . . . . . . . . . . . . . . . . . . . . . Max Security . | . . . . . . . . . . . . . . . . . . . . . . . . . . . . . . . . . . . . Squads Dispatched 96 | . 4 . 4 . . . 2 . 8 . 4 . 4 . 2 . 5 . 4 . 2 . . . . 2 . 4 . 8 . 9 20 5 9 Investigation 23 | . 1 . 3 . . . 1 . 1 . 2 . 1 . 2 . 1 . 1 . . . . . . 1 . 3 . 2 . . 2 1 1 Extermination 20 | . . . . . . . . . . . 1 . 2 . . . 2 . 2 . 1 . . . . 1 . . . 2 . 3 1 2 3 Reinforcement 29 | . 3 . 1 . . . 1 . 7 . 1 . 1 . . . 2 . . . . . . . . . . . . 2 . 3 7 1 . Assault 14 | . . . . . . . . . . . . . . . . . . . . . 1 . . . . . . 1 . 2 . 3 1 1 5 Garrison 7 | . . . . . . . . . . . . . . . . . . . 1 . . . . . . . . . . . . . 6 . . Intercept 3 | . . . . . . . . . . . . . . . . . . . . . . . . . . . . . . . . . 3 . . Searches Triggered . | . . . . . . . . . . . . . . . . . . . . . . . . . . . . . . . . . . . . Construction Impeded 4 | . . . . . . . . . . . . . 1 . . . . . . . . . . . . . . . . 1 . . 2 . . Haulers Reinforced 4 | . . . . . . . . . . . . . . . . . 2 . . . . . . . . . . . . 1 . 1 . . . Active Scanning Responses . | . . . . . . . . . . . . . . . . . . . . . . . . . . . . . . . . . . . . Cargo Convoy Interrupts 1 | . . . . . . . . . . . . . 1 . . . . . . . . . . . . . . . . . . . . . . Alert ID Control Effect 7 | . . . . . . . . . . . . . . . . . . . . . . . . . . . . . . . . 5 2 . . Stealth | -11 -10 -10 -9 -9 -9 -8 -8 -8 -8 -8 -7 -7 -7 -7 -6 -6 -5 -5 -5 -5 -5 -5 -5 -5 -4 -4 -4 -3 -3 -2 -2 -2 -2 -1 -1 --------- Run | Scr Mat Min Mat Min Exi Min Mat Gar Mat Gar Fac Gar Fac Gar Fac Gar Fac Was Fac Gar Fac Upp Upp Zhi Pro Fac Gar Res Gar Res Gar Qua Sec Acc Com Distress Signals 17 | . 1 . 2 . . . 1 . 3 . . . . . . . . . 1 . . . . . . . . . . 1 . 1 6 . 1 Communications Jammed 269 | . . . . . . . . . . . 4 . 48 . . . 29 . . . . . . . 15 . . 8 . 136 . 29 . . . Distress Signals 258 | . . . . . . . . . . . 1 . 41 . . . 29 . . . . . . . 15 . . 7 . 136 . 29 . . . Times Spotted 841 | . 24 13 25 2 32 16 4 13 41 17 8 21 21 47 . 23 32 4 21 52 18 3 8 . 27 6 51 10 . 68 34 27 60 14 99 Peak Tracking Total 18 | . 4 3 6 2 9 4 2 4 5 4 2 4 8 6 . 5 6 2 3 9 4 2 5 . 5 3 5 4 . 7 9 9 9 6 18 Tactical Retreats 56 | . . 1 . . 8 1 . . 2 . . 1 . 3 . 3 . . 1 7 1 . 1 . 2 . 1 . . 1 1 1 5 2 14 Traps | -11 -10 -10 -9 -9 -9 -8 -8 -8 -8 -8 -7 -7 -7 -7 -6 -6 -5 -5 -5 -5 -5 -5 -5 -5 -4 -4 -4 -3 -3 -2 -2 -2 -2 -1 -1 ------- Run | Scr Mat Min Mat Min Exi Min Mat Gar Mat Gar Fac Gar Fac Gar Fac Gar Fac Was Fac Gar Fac Upp Upp Zhi Pro Fac Gar Res Gar Res Gar Qua Sec Acc Com Traps Triggered 62 | . . . . . . . . 3 . 4 . 8 3 3 . 4 1 . 3 6 1 . . . 3 . 19 . 2 . 2 . . . . Indirectly . | . . . . . . . . . . . . . . . . . . . . . . . . . . . . . . . . . . . . Trap Hack Attempts 104 | . . . 45 . . . . . . . 58 . . . . . . . . . . . . . . . . . . . 1 . . . . Triggered . | . . . . . . . . . . . . . . . . . . . . . . . . . . . . . . . . . . . . Disarmed 2 | . . . . . . . . . . . 1 . . . . . . . . . . . . . . . . . . . 1 . . . . Reprogrammed 12 | . 4 . 3 . . . . . . . 5 . . . . . . . . . . . . . . . . . . . . . . . . Reused 2 | . . . 1 . . . . . . . 1 . . . . . . . . . . . . . . . . . . . . . . . . Traps Extracted . | . . . . . . . . . . . . . . . . . . . . . . . . . . . . . . . . . . . . Installed . | . . . . . . . . . . . . . . . . . . . . . . . . . . . . . . . . . . . . Triggered 10 | . . . 1 . . . . . . . 1 . 1 . . . . . . . . . 1 . 2 . . . . 4 . . . . . Exploded 3 | . . . . . 3 . . . . . . . . . . . . . . . . . . . . . . . . . . . . . . Machines | -11 -10 -10 -9 -9 -9 -8 -8 -8 -8 -8 -7 -7 -7 -7 -6 -6 -5 -5 -5 -5 -5 -5 -5 -5 -4 -4 -4 -3 -3 -2 -2 -2 -2 -1 -1 ---------- Run | Scr Mat Min Mat Min Exi Min Mat Gar Mat Gar Fac Gar Fac Gar Fac Gar Fac Was Fac Gar Fac Upp Upp Zhi Pro Fac Gar Res Gar Res Gar Qua Sec Acc Com Machines Disabled 101 | . . 1 1 . 12 2 1 1 2 3 . 2 8 1 . 1 24 . 2 6 4 . . . 3 2 7 . 1 1 3 1 10 . 2 Max in Single Turn 6 | . . 1 1 . 1 1 1 1 1 1 . 1 . 1 . 1 6 . 1 1 1 . . . 1 . 1 . 1 . 1 1 1 . 1 Garrison Access 1 | . . . . . . . . . . . . . . . . . . . . . . . . . . . . . . . . . . 1 . Garrison Relay 13 | . . . . . . . . 2 . 2 . . . 1 . 1 . . . 1 . . . . . . 3 . 1 . 2 . . . . Machines Sabotaged . | . . . . . . . . . . . . . . . . . . . . . . . . . . . . . . . . . . . . Overloaded Fab Kills . | . . . . . . . . . . . . . . . . . . . . . . . . . . . . . . . . . . . . Hacking | -11 -10 -10 -9 -9 -9 -8 -8 -8 -8 -8 -7 -7 -7 -7 -6 -6 -5 -5 -5 -5 -5 -5 -5 -5 -4 -4 -4 -3 -3 -2 -2 -2 -2 -1 -1 --------- Run | Scr Mat Min Mat Min Exi Min Mat Gar Mat Gar Fac Gar Fac Gar Fac Gar Fac Was Fac Gar Fac Upp Upp Zhi Pro Fac Gar Res Gar Res Gar Qua Sec Acc Com Machines Accessed 131 | . 7 2 7 . 2 . 2 2 13 3 3 3 7 3 3 3 6 . 8 1 4 . . 4 3 3 4 2 3 6 2 4 7 6 8 Terminals 84 | . 5 1 6 . . . 1 2 8 3 . 3 3 3 1 3 4 . 2 1 2 . . . 1 1 4 . 3 5 2 3 6 5 6 Fabricators 8 | . . . . . . . . . . . 2 . 2 . . . . . 1 . 1 . . . 1 . . 1 . . . . . . . Repair Stations 8 | . 1 . . . . . . . 1 . . . . . . . . . 3 . . . . . . . . . . . . 1 . . 2 Recycling Units 12 | . 1 . 1 . . . . . 2 . . . 1 . 1 . 2 . 1 . 1 . . . 1 1 . . . . . . . . . Scanalyzers 1 | . . . . . . . . . 1 . . . . . . . . . . . . . . . . . . . . . . . . . . Garrison Access 11 | . . . . . . . 1 . 1 . 1 . 1 . 1 . . . 1 . . . . . . 1 . 1 . 1 . . 1 1 . Total Hacks 335 | . 29 6 20 . 2 . 10 4 39 6 11 5 17 8 10 8 13 . 17 2 13 . . 17 6 8 8 6 6 14 6 8 10 11 15 Successful 181 | . 14 3 10 . 2 . 4 2 27 4 8 4 7 . 7 3 8 . 11 1 3 . . 17 3 5 4 4 2 8 2 1 7 7 3 Failed 153 | . 15 3 10 . . . 6 2 11 2 3 1 10 8 3 5 5 . 6 1 10 . . . 3 3 4 2 4 6 4 7 3 4 12 Catastrophic 35 | . 1 . 1 . . . 3 . 2 . 1 . 4 2 . . . . 1 . 5 . . . . . 3 1 2 1 1 . 1 3 3 Database Lockouts 1 | . . . . . . . . . 1 . . . . . . . . . . . . . . . . . . . . . . . . . . Manual 154 | . 22 5 16 . 1 . 6 . 18 2 5 2 6 . 8 2 2 . 6 . 10 . . . 2 3 3 2 3 8 4 3 5 2 8 Terminals 215 | . 24 5 18 . . . 4 4 26 6 . 5 6 8 6 8 8 . 6 2 8 . . . 2 2 8 . 6 12 6 6 8 9 12 Fabricators 25 | . . . . . . . . . . . 8 . 7 . . . . . 1 . 4 . . . 2 . . 3 . . . . . . . Repair Stations 16 | . 2 . . . . . . . 2 . . . . . . . . . 7 . . . . . . . . . . . . 2 . . 3 Recycling Units 27 | . 3 . 2 . . . . . 5 . . . 2 . 2 . 5 . 1 . 1 . . . 2 4 . . . . . . . . . Scanalyzers 4 | . . . . . . . . . 4 . . . . . . . . . . . . . . . . . . . . . . . . . . Garrison Access 28 | . . . . . . . 6 . 2 . 3 . 2 . 2 . . . 2 . . . . . . 2 . 3 . 2 . . 2 2 . Terminal Hacks 95 | . 10 2 6 . 2 . 1 2 14 3 . 2 . . 4 2 5 . . 1 1 . . 17 1 1 4 . 2 4 2 1 4 4 . Record 6 | . . . . . 1 . . . . . . . . . . . . . . . . . . 5 . . . . . . . . . . . Part Schematic 5 | . 1 . . . . . . . . . . . . . . . . . . . . . . 4 . . . . . . . . . . . Robot Schematic 1 | . . 1 . . . . . . . . . . . . . . . . . . . . . . . . . . . . . . . . . Robot Analysis 15 | . 3 . 2 . . . . . 4 . . . . . . . . . . . . . . 4 . 1 . . . 1 . . . . . Prototype ID Bank 11 | . 3 . 1 . . . . . 2 . . . . . . . 1 . . . . . . 4 . . . . . . . . . . . Open Door 12 | . . 1 . . . . . . . 1 . 1 . . . . . . . . . . . . 1 . 1 . . . . . 4 3 . Branch Access Points 3 | . . . 1 . . . 1 . . . . . . . . . . . . . . . . . . . . . . . . . . 1 . Emergency Access Points 7 | . . . . . . . . 1 . 1 . 1 . . . . . . . 1 . . . . . . 1 . 1 . 1 . . . . Machine Index 1 | . . . . . . . . . . . . . . . . . . . . . . . . . . . . . . 1 . . . . . Garrison Index 1 | . . . . . . . . . . . . . . . . . 1 . . . . . . . . . . . . . . . . . . Unreport Threat 16 | . 1 . 2 . . . . . 3 . . . . . 4 . 2 . . . 1 . . . . . 1 . . 1 . 1 . . . Locate Traps 3 | . 1 . . . . . . . 1 . . . . . . . . . . . . . . . . . . . . 1 . . . . . Reprogram Traps 1 | . 1 . . . . . . . . . . . . . . . . . . . . . . . . . . . . . . . . . . Recall Reinforcements 1 | . . . . . . . . . 1 . . . . . . . . . . . . . . . . . . . . . . . . . . Registered Components 1 | . . . . . . . . . 1 . . . . . . . . . . . . . . . . . . . . . . . . . . Zone Layout 3 | . . . . . . . . . 2 . . . . . . . 1 . . . . . . . . . . . . . . . . . . Garrison Registry 4 | . . . . . . . . 1 . 1 . . . . . 1 . . . . . . . . . . . . 1 . . . . . . Patrol Navigation 3 | . . . . . . . . . . . . . . . . 1 . . . . . . . . . . 1 . . . 1 . . . . EX-Prototype ID Bank 1 | . . . . . 1 . . . . . . . . . . . . . . . . . . . . . . . . . . . . . . Fabricator Hacks 16 | . . . . . . . . . . . 5 . 4 . . . . . 1 . 2 . . . 2 . . 2 . . . . . . . Network Status 5 | . . . . . . . . . . . 2 . 1 . . . . . 1 . 1 . . . . . . . . . . . . . . Load Schematic 4 | . . . . . . . . . . . 1 . 1 . . . . . . . . . . . 1 . . 1 . . . . . . . Build 7 | . . . . . . . . . . . 2 . 2 . . . . . . . 1 . . . 1 . . 1 . . . . . . . Repair Station Hacks 9 | . 1 . . . . . . . 2 . . . . . . . . . 5 . . . . . . . . . . . . . . . 1 Scan Component 6 | . 1 . . . . . . . 1 . . . . . . . . . 3 . . . . . . . . . . . . . . . 1 Repair 3 | . . . . . . . . . 1 . . . . . . . . . 2 . . . . . . . . . . . . . . . . Recycling Unit Hacks 8 | . 2 . . . . . . . 2 . . . . . 1 . 1 . 1 . . . . . . 1 . . . . . . . . . Process 2 | . 1 . . . . . . . 1 . . . . . . . . . . . . . . . . . . . . . . . . . . Report Inventory 1 | . . . . . . . . . 1 . . . . . . . . . . . . . . . . . . . . . . . . . . Retrieve Matter 1 | . 1 . . . . . . . . . . . . . . . . . . . . . . . . . . . . . . . . . . Retrieve Components 4 | . . . . . . . . . . . . . . . 1 . 1 . 1 . . . . . . 1 . . . . . . . . . Scanalyzer 4 | . . . . . . . . . 4 . . . . . . . . . . . . . . . . . . . . . . . . . . Insert Component 2 | . . . . . . . . . 2 . . . . . . . . . . . . . . . . . . . . . . . . . . Analyze 2 | . . . . . . . . . 2 . . . . . . . . . . . . . . . . . . . . . . . . . . Garrison Access Hacks 12 | . . . . . . . 1 . 1 . 1 . 1 . 1 . . . 1 . . . . . . 1 . 1 . 1 . . 1 2 . Unlock Access 10 | . . . . . . . 1 . 1 . 1 . 1 . 1 . . . 1 . . . . . . 1 . 1 . 1 . . 1 . . Seal Access 1 | . . . . . . . . . . . . . . . . . . . . . . . . . . . . . . . . . . 1 . Coupler Status 1 | . . . . . . . . . . . . . . . . . . . . . . . . . . . . . . . . . . 1 . Unauthorized Hacks 37 | . 1 1 4 . . . 2 . 4 1 2 2 2 . 1 1 2 . 3 . . . . . . 2 . 1 . 3 . . 2 1 2 Terminals 21 | . . 1 3 . . . 1 . 2 1 . 2 1 . . 1 1 . 2 . . . . . . . . . . 2 . . 1 1 2 Track 8 | . . 1 1 . . . . . 1 1 . 2 1 . . 1 . . . . . . . . . . . . . . . . . . . Botnet 10 | . . . 1 . . . 1 . 1 . . . . . . . 1 . 2 . . . . . . . . . . 1 . . 1 1 1 Disrupt 2 | . . . . . . . . . . . . . . . . . . . . . . . . . . . . . . 1 . . . . 1 Search 1 | . . . 1 . . . . . . . . . . . . . . . . . . . . . . . . . . . . . . . . Fabricators 3 | . . . . . . . . . . . 2 . 1 . . . . . . . . . . . . . . . . . . . . . . Prioritize 2 | . . . . . . . . . . . 2 . . . . . . . . . . . . . . . . . . . . . . . . Recompile 1 | . . . . . . . . . . . . . 1 . . . . . . . . . . . . . . . . . . . . . . Repair Stations . | . . . . . . . . . . . . . . . . . . . . . . . . . . . . . . . . . . . . Recycling Units 5 | . 1 . 1 . . . . . 1 . . . . . . . 1 . . . . . . . . 1 . . . . . . . . . Mask 4 | . . . 1 . . . . . 1 . . . . . . . 1 . . . . . . . . 1 . . . . . . . . . Tunnel 1 | . 1 . . . . . . . . . . . . . . . . . . . . . . . . . . . . . . . . . . Scanalyzers . | . . . . . . . . . . . . . . . . . . . . . . . . . . . . . . . . . . . . Garrison Access 8 | . . . . . . . 1 . 1 . . . . . 1 . . . 1 . . . . . . 1 . 1 . 1 . . 1 . . Reprogram 8 | . . . . . . . 1 . 1 . . . . . 1 . . . 1 . . . . . . 1 . 1 . 1 . . 1 . . Data Cores Recovered 1 | . . . . . . . . . . . . . . . . . . . . . . . . . . . . . . 1 . . . . . Used 1 | . . . . . . . . . . . . . . . . . . . . . . . . . . . . . . 1 . . . . . Hacking Detections 107 | . 6 1 7 . . . 2 1 11 2 3 3 6 3 2 3 5 . 7 . 4 . . . 3 2 4 2 3 6 2 4 4 3 8 Full Trace Events 17 | . . . 3 . . . 1 . . . 2 . . 1 1 . 1 . . . . . . . 1 . . 2 . 1 1 . 1 1 1 Feedback Events . | . . . . . . . . . . . . . . . . . . . . . . . . . . . . . . . . . . . . Feedback Blocked . | . . . . . . . . . . . . . . . . . . . . . . . . . . . . . . . . . . . . Robot Schematics Acquired 3 | . . 1 . . . . . . . . . . . . . . . . . . . . . . . . . . . . . 2 . . . Robots Built 5 | . . . . . . . . . . . 1 . 3 . . . . . . . . . . . . . . 1 . . . . . . . Authchips 1 | . . . . . . . . . . . . . 1 . . . . . . . . . . . . . . . . . . . . . . Time 336 | . . . . . . . . . . . 40 . 215 . . . . . . . . . . . . . . 81 . . . . . . . Total Robot Build Rating 11 | . . . . . . . . . . . 1 . 9 . . . . . . . . . . . . . . 1 . . . . . . . Part Schematics Acquired 10 | . 1 . . . . . . . 2 . . . . . . . . . . . . . . 4 . . . . . . . 3 . . . Parts Built 4 | . . . . . . . . . . . 1 . . . . . . . . . 2 . . . 1 . . . . . . . . . . Authchips . | . . . . . . . . . . . . . . . . . . . . . . . . . . . . . . . . . . . . Time 259 | . . . . . . . . . . . 95 . . . . . . . . . 139 . . . 25 . . . . . . . . . . Total Part Build Rating 24 | . . . . . . . . . . . 5 . . . . . . . . . 18 . . . 1 . . . . . . . . . . Parts Repaired 3 | . . . . . . . . . 1 . . . . . . . . . 2 . . . . . . . . . . . . . . . . Time 225 | . . . . . . . . . 68 . . . . . . . . . 157 . . . . . . . . . . . . . . . . Parts Recycled . | . . . . . . . . . . . . . . . . . . . . . . . . . . . . . . . . . . . . Recycled Matter 199 | . 196 . . . . . . . 3 . . . . . . . . . . . . . . . . . . . . . . . . . . Retrieved Matter 215 | . 215 . . . . . . . . . . . . . . . . . . . . . . . . . . . . . . . . . . Retrieved Components 6 | . . . . . . . . . . . . . . . 1 . 2 . 1 . . . . . . 2 . . . . . . . . . Parts Scanalyzed 2 | . . . . . . . . . 2 . . . . . . . . . . . . . . . . . . . . . . . . . . Part Schematics Acquired 2 | . . . . . . . . . 2 . . . . . . . . . . . . . . . . . . . . . . . . . . Parts Damaged . | . . . . . . . . . . . . . . . . . . . . . . . . . . . . . . . . . . . . Bothacking | -11 -10 -10 -9 -9 -9 -8 -8 -8 -8 -8 -7 -7 -7 -7 -6 -6 -5 -5 -5 -5 -5 -5 -5 -5 -4 -4 -4 -3 -3 -2 -2 -2 -2 -1 -1 ------------ Run | Scr Mat Min Mat Min Exi Min Mat Gar Mat Gar Fac Gar Fac Gar Fac Gar Fac Was Fac Gar Fac Upp Upp Zhi Pro Fac Gar Res Gar Res Gar Qua Sec Acc Com Used RIF Installer 9 | . . . . . . . . 1 . 1 . 1 . 1 . 1 . . . 1 . . . . . . 1 . 1 . 1 . . . . Hotswap 1 | . . . . . . . . . . . . . . . . 1 . . . . . . . . . . . . . . . . . . . Code Merge 1 | . . . . . . . . . . . . . . . . . . . . . . . . . . . 1 . . . . . . . . Zone Cloak 2 | . . . . . . . . . . . . 1 . 1 . . . . . . . . . . . . . . . . . . . . . Patrol Navigation 1 | . . . . . . . . . . . . . . . . . . . . 1 . . . . . . . . . . . . . . . Alert ID Control 1 | . . . . . . . . . . . . . . . . . . . . . . . . . . . . . . . 1 . . . . Structural Interface 1 | . . . . . . . . . . 1 . . . . . . . . . . . . . . . . . . . . . . . . . Autooverride 1 | . . . . . . . . . . . . . . . . . . . . . . . . . . . . . 1 . . . . . . Robots Hacked 96 | . . . . . 4 . . . 1 . 1 4 . 6 . . 5 6 1 3 3 . . 3 2 . 5 5 . 28 5 7 7 . . Non-combat 23 | . . . . . 3 . . . 1 . 1 . . . . . 2 . . 1 3 . . . . . . . . 9 . 3 . . . Combat 73 | . . . . . 1 . . . . . . 4 . 6 . . 3 6 1 2 . . . 3 2 . 5 5 . 19 5 4 7 . . Autooverrided 8 | . . . . . . . . . . . . . . . . . . . . . . . . . . . . . . 4 2 . 2 . . Robot Hacks Applied 124 | . . . . . 23 . . . 3 . 3 4 . 6 . . 5 6 1 5 3 . . 3 3 . 6 5 . 28 3 11 6 . . parse_system 31 | . . . . . 23 . . . . . . . . . . . . . . . . . . 3 3 . . . . 1 . 1 . . . no_distress 1 | . . . . . . . . . . . . . . . . . . . . . . . . . . . . . . . . 1 . . . find_chute 1 | . . . . . . . . . . . . . . . . . 1 . . . . . . . . . . . . . . . . . . hold_bot 1 | . . . . . . . . . . . . . . . . . . . . . . . . . . . . . . 1 . . . . . ignore_repairs 1 | . . . . . . . . . . . . . . . . . . . . . . . . . . . . . . 1 . . . . . drop_inventory 4 | . . . . . . . . . . . . . . . . . . . . . 1 . . . . . . . . 3 . . . . . purge_threat 11 | . . . . . . . . . 2 . 2 . . . . . . . . 3 . . . . . . . . . 2 . 2 . . . disarm_traps 1 | . . . . . . . . . 1 . . . . . . . . . . . . . . . . . . . . . . . . . . reprogram_traps 1 | . . . . . . . . . . . . . . . . . . . . . . . . . . . . . . 1 . . . . . block_reporting 2 | . . . . . . . . . . . . . . . . . . . . . . . . . . . . . . 1 . 1 . . . relay_feed 2 | . . . . . . . . . . . . . . . . . . . . . . . . . . . . . . 1 . 1 . . . ignore_targets 6 | . . . . . . . . . . . . . . . . . . 6 . . . . . . . . . . . . . . . . . scatter_targeting 1 | . . . . . . . . . . . . 1 . . . . . . . . . . . . . . . . . . . . . . . disrupt_area 1 | . . . . . . . . . . . . . . . . . . . . . . . . . . . . . . . 1 . . . . amplify_resonance 5 | . . . . . . . . . . . . . . . . . 1 . 1 . . . . . . . . . . 3 . . . . . wipe_record 2 | . . . . . . . . . . . . . . . . . . . . . . . . . . . . . . . . 1 1 . . reboot_system 2 | . . . . . . . . . . . . . . . . . . . . . . . . . . . . 1 . . . . 1 . . overwrite_iff 24 | . . . . . . . . . . . . 2 . 5 . . 2 . . 2 . . . . . . 4 2 . 4 . 2 1 . . streamctrl_low 1 | . . . . . . . . . . . 1 . . . . . . . . . . . . . . . . . . . . . . . . streamctrl_high 6 | . . . . . . . . . . . . . . 1 . . . . . . . . . . . . 1 1 . 1 1 . 1 . . formatsys_low 6 | . . . . . . . . . . . . . . . . . 1 . . . 2 . . . . . . . . 2 . 1 . . . formatsys_high 14 | . . . . . . . . . . . . 1 . . . . . . . . . . . . . . 1 1 . 7 1 1 2 . . Relay Couplers Released 65 | . . . . . . . . 8 . 11 . 4 . 4 . 5 . . . 5 . . . . . . 14 . 4 . 8 . . 2 . Machine Destruction 54 | . . . . . . . . 8 . 7 . . . 4 . 5 . . . 5 . . . . . . 11 . 4 . 8 . . 2 . Programmers 11 | . . . . . . . . . . 4 . 4 . . . . . . . . . . . . . . 3 . . . . . . . . Attached 33 | . . . . . . . . . 1 . 1 1 . 2 . . 2 . 1 3 1 . . . . . 3 1 3 6 3 1 2 1 1 Fabnet Peak Effective % . | . . . . . . . . . . . . . . . . . . . . . . . . . . . . . . . . . . . . Robots Rewired 35 | . . . . . . . . . . . . . . 8 . 2 . . . 4 . . . . 13 . 2 . 4 . 2 . . . . Allies Hacked 7 | . . . . . . . . . . . . . 1 . . . . . . . . . . . . . 1 . . 5 . . . . . Hacks Repelled . | . . . . . . . . . . . . . . . . . . . . . . . . . . . . . . . . . . . . Allies | -11 -10 -10 -9 -9 -9 -8 -8 -8 -8 -8 -7 -7 -7 -7 -6 -6 -5 -5 -5 -5 -5 -5 -5 -5 -4 -4 -4 -3 -3 -2 -2 -2 -2 -1 -1 -------- Run | Scr Mat Min Mat Min Exi Min Mat Gar Mat Gar Fac Gar Fac Gar Fac Gar Fac Was Fac Gar Fac Upp Upp Zhi Pro Fac Gar Res Gar Res Gar Qua Sec Acc Com Total Allies 137 | . . . . 5 . . 2 . 3 1 2 7 3 16 3 5 3 1 1 11 2 . . . 13 1 7 7 4 21 6 4 9 . . Largest Group 11 | . . . . 5 4 . 2 2 . 3 1 3 3 4 3 3 1 1 1 5 3 3 3 3 11 11 11 5 8 8 4 4 5 . . Highest-Rated Group 515 | . . . . 81 50 . 32 32 . 48 26 171 78 207 87 296 148 31 49 313 194 184 184 184 444 515 515 237 343 343 328 343 500 . . Highest-Rated Ally 343 | . . . . 31 16 . 16 16 . 20 26 95 32 95 29 148 148 31 49 148 148 138 138 138 138 83 83 64 56 178 116 343 229 . . Total Orders 155 | . . . . 2 2 . . . . . 2 7 2 . . 9 6 . . 5 15 7 14 2 34 8 13 5 . 8 3 6 5 . . STAY 62 | . . . . 1 1 . . . . . 1 5 . . . 1 3 . . 2 6 3 5 1 14 2 6 1 . 2 2 4 2 . . ROAM 6 | . . . . . . . . . . . . . . . . 2 . . . . . 1 1 . 1 . . . . . . . 1 . . FOLLOW 58 | . . . . 1 1 . . . . . 1 1 . . . 3 2 . . 2 7 3 7 1 15 4 2 2 . 1 1 2 2 . . AID 25 | . . . . . . . . . . . . 1 2 . . . 1 . . . 2 . 1 . 4 2 5 2 . 5 . . . . . EXPLORE 1 | . . . . . . . . . . . . . . . . 1 . . . . . . . . . . . . . . . . . . . RETURN 3 | . . . . . . . . . . . . . . . . 2 . . . 1 . . . . . . . . . . . . . . . Ally Attacks 1179 | . . . . . 18 . . 6 . 14 . 52 18 87 . 88 22 129 . 104 39 2 6 . 145 16 69 31 12 109 66 57 89 . . Total Damage 37244 | . . . . . 347 . . 47 . 327 . 2146 1122 2714 . 2029 578 2299 . 2955 1425 98 242 . 2259 403 1832 1174 223 4819 1906 3471 4828 . . Kills 211 | . . . . . 1 . . . . 1 . 14 16 17 . 18 6 1 . 20 12 1 2 . 15 5 7 5 1 20 14 15 20 . . Allies Corrupted 5 | . . . . . . . . . . . . 1 . 1 . . . 1 . . . . . . . . 1 . . 1 . . . . . Allies Melted 4 | . . . . . . . . . . . . . . 2 . . . . . 1 . . . . . . 1 . . . . . . . . Turrets Deployed 1 | . . . . . 1 . . . . . . . . . . . . . . . . . . . . . . . . . . . . . . Intel | -11 -10 -10 -9 -9 -9 -8 -8 -8 -8 -8 -7 -7 -7 -7 -6 -6 -5 -5 -5 -5 -5 -5 -5 -5 -4 -4 -4 -3 -3 -2 -2 -2 -2 -1 -1 ------- Run | Scr Mat Min Mat Min Exi Min Mat Gar Mat Gar Fac Gar Fac Gar Fac Gar Fac Was Fac Gar Fac Upp Upp Zhi Pro Fac Gar Res Gar Res Gar Qua Sec Acc Com Robot Analysis Total 15 | . 3 . 2 . . . . . 4 . . . . . . . . . . . . . . 4 . 1 . . . 1 . . . . . Derelict Logs Recovered 7 | . . 1 . 2 . . . . . . . . . . . . . . . . . 1 2 . 1 . . . . . . . . . . Drone Launches 34 | . . . . . . . . . . . . . . . . 11 . . . 23 . . . . . . . . . . . . . . . Drone Recoveries 32 | . . . . . . . . . . . . . . . . 11 . . . 21 . . . . . . . . . . . . . . . Exploration | -11 -10 -10 -9 -9 -9 -8 -8 -8 -8 -8 -7 -7 -7 -7 -6 -6 -5 -5 -5 -5 -5 -5 -5 -5 -4 -4 -4 -3 -3 -2 -2 -2 -2 -1 -1 ------------- Run | Scr Mat Min Mat Min Exi Min Mat Gar Mat Gar Fac Gar Fac Gar Fac Gar Fac Was Fac Gar Fac Upp Upp Zhi Pro Fac Gar Res Gar Res Gar Qua Sec Acc Com Turns Passed 48418 | 18 1409 1584 2466 1678 2815 940 504 887 2229 1430 940 1898 1050 1935 113 2245 1558 382 1484 2334 845 618 906 288 3511 434 2705 281 1028 1393 962 1278 1427 1009 1834 Spaces Moved 19512 | 9 726 756 769 677 1030 352 132 339 757 546 265 693 384 842 67 827 551 169 519 981 352 343 480 153 1153 227 1127 83 404 476 447 606 786 497 987 Core 88 | . . . . . . . . . . . . . . . . . . . . . . . . . . . . . . . . . . . 88 Treads 13676 | 9 726 756 769 677 764 . . 190 757 546 265 693 384 842 67 827 551 169 519 981 352 343 480 153 1116 . 102 83 404 141 . . . . 10 Legs 4187 | . . . . . 266 352 132 149 . . . . . . . . . . . . . . . . . . . . . 335 447 606 666 497 737 Wheels 1298 | . . . . . . . . . . . . . . . . . . . . . . . . . 37 227 1025 . . . . . . . 9 Hover . | . . . . . . . . . . . . . . . . . . . . . . . . . . . . . . . . . . . . Flight 25 | . . . . . . . . . . . . . . . . . . . . . . . . . . . . . . . . . . . 25 Fastest Speed 50 | 160 160 160 160 240 190 210 210 210 240 240 240 240 240 160 160 160 160 160 240 160 166 166 166 166 150 150 135 246 246 157 120 116 115 120 50 Average Speed 191 | 160 160 160 238 240 233 210 210 226 240 240 240 240 240 171 160 216 207 213 240 178 188 166 166 166 168 155 177 246 246 183 178 120 123 120 115 Slowest Speed 330 | 160 160 160 240 240 330 210 210 240 240 240 240 240 240 240 160 243 243 240 240 240 246 166 166 166 270 165 330 246 246 246 190 190 186 120 225 Overloaded Moves . | . . . . . . . . . . . . . . . . . . . . . . . . . . . . . . . . . . . . Propulsion Burnouts . | . . . . . . . . . . . . . . . . . . . . . . . . . . . . . . . . . . . . Robots Hopped 1 | . . . . . . . . . . . . . . . . . . . . . . . . . . . . . . . . . . . 1 Cave-ins Triggered . | . . . . . . . . . . . . . . . . . . . . . . . . . . . . . . . . . . . . Teleports 3 | . . . . . . . . . . . . . . . . . . . . . . . . . . . . . . . . . 3 . . Microwarps 22 | . . . . . . . . . . . . . . . . . . . . . . . . . . . . . . . . . 10 . 12 Exploration Rate (%) 51 | 2 74 98 51 99 90 82 9 43 82 53 7 88 14 89 3 91 17 86 19 88 11 69 57 61 72 4 88 2 71 19 57 45 69 15 40 Regions Visited 35 Branch Regions 11 Pre-discovered Areas 8 | . 1 1 . 2 1 . . . . . . . . . . . . . . . . . . 3 . . . . . . . . . . . Known Exits Taken 13 | . . . 1 . . . 1 . 1 . 1 . 1 . 1 . . . 1 . . 1 . . 1 1 . 1 . 1 . . . 1 . Unknown Exits Taken 11 | 1 1 1 . 1 1 1 . . . . . . . . . . . . . . 1 . 1 1 . . . . . . . 1 1 . . Scrap Searched 11 | . . 1 . 1 . 2 . . . . . . . . . . . . . . . 1 3 . 3 . . . . . . . . . . Spaces Dug 323 | . 5 11 . 1 . 45 . 1 6 4 . 22 . 6 . . . . 4 . 31 7 29 . 29 3 69 . . 18 . 1 4 11 16 Terrain Destroyed 972 | . 52 18 2 1 16 53 . 11 51 16 . 30 17 42 . . 162 . 34 12 31 11 53 . 49 3 128 . . 34 21 7 7 90 21 Melee 43 | . . . . . . . . . 2 . . . . 6 . . . . . . 17 2 8 . . . . . . . . . 4 2 2 Projectile 217 | . . . 2 1 10 . . . 2 . . . 1 7 . . 74 . 34 11 . . 4 . 8 3 8 . . 11 2 6 3 11 19 AOE 707 | . 52 18 . . 4 53 . 11 47 16 . 30 16 29 . . 88 . . . 14 9 41 . 41 . 119 . . 23 19 . . 77 . Terrain Rammed . | . . . . . . . . . . . . . . . . . . . . . . . . . . . . . . . . . . . . Walls Destroyed . | . . . . . . . . . . . . . . . . . . . . . . . . . . . . . . . . . . . . Machines Disabled . | . . . . . . . . . . . . . . . . . . . . . . . . . . . . . . . . . . . . Actions | -11 -10 -10 -9 -9 -9 -8 -8 -8 -8 -8 -7 -7 -7 -7 -6 -6 -5 -5 -5 -5 -5 -5 -5 -5 -4 -4 -4 -3 -3 -2 -2 -2 -2 -1 -1 --------- Run | Scr Mat Min Mat Min Exi Min Mat Gar Mat Gar Fac Gar Fac Gar Fac Gar Fac Was Fac Gar Fac Upp Upp Zhi Pro Fac Gar Res Gar Res Gar Qua Sec Acc Com Total 28182 | 11 894 1069 1268 704 1287 543 349 422 1101 641 541 892 487 1195 73 1161 802 187 676 1380 459 379 560 180 2620 299 1618 162 440 827 567 1004 1109 861 1414 Wait 5182 | . 73 250 317 7 42 178 181 16 205 32 164 110 56 194 . 202 107 2 93 188 31 26 57 . 1297 50 149 67 3 135 31 243 223 257 196 Move 19261 | 8 725 755 768 676 1029 351 131 338 756 545 265 692 383 841 66 826 551 168 518 980 351 342 479 152 1152 226 1126 82 403 475 446 605 675 496 879 Hop 1 | . . . . . . . . . . . . . . . . . . . . . . . . . . . . . . . . . . . 1 Pick Up 278 | . 19 7 28 1 33 . 8 4 10 4 3 5 4 4 1 14 7 1 5 18 2 . . 2 5 3 21 . 6 11 6 9 13 10 14 Fast Attach 220 | . 1 1 4 . 5 . 1 3 5 . 1 3 6 4 1 3 11 1 2 14 11 . 2 7 15 2 20 . 3 9 7 8 15 20 35 Attach 147 | . . . 2 . 16 . 3 . 1 . 4 2 2 2 3 3 2 1 2 8 1 . . 1 1 3 11 1 1 6 3 11 19 10 28 Detach 94 | . . . 1 . 2 . 2 . 1 . 1 . 4 3 2 . . 2 1 5 3 . . 1 3 2 6 . 4 2 3 8 13 11 14 Swap 418 | 3 13 9 10 1 11 8 5 8 28 14 8 17 9 21 . 13 17 3 7 15 13 5 4 3 15 4 39 3 5 36 16 15 20 5 15 Drop 376 | . 15 12 21 2 20 . 7 7 23 11 5 14 10 8 . 12 19 2 4 21 9 . 2 7 17 3 33 . 7 13 10 10 11 9 32 Fire 1444 | . 42 34 62 11 86 6 10 37 65 31 30 37 11 85 . 80 78 7 41 89 20 4 7 1 53 6 125 2 6 130 35 39 45 36 93 Melee 361 | . . . . . 43 . . . 2 1 . . . 9 . . 2 . . 2 18 2 9 6 22 . . 6 . 6 3 52 67 7 104 Ram 2 | . . . . . . . . . . . . . . . . . . . . . . . . . . . . . . . . . . . 2 Kick 10 | . . . . . . . 1 . . . . . . . . . . . . . . . . . . . . . . 3 . 3 2 . 1 Crush 51 | . 6 1 10 6 . . . . 5 1 2 2 2 . . . 7 . 3 5 . . . . . . 1 . . . . . . . . Escape Stasis 126 | . . . . . . . . 9 . 2 . 10 . . . 8 . . . 5 . . . . . . 82 . . . 5 . 5 . . Rewire 107 | . . . . . . . . . . . . . . 24 . . 1 . . 30 . . . . 40 . 5 1 2 1 1 1 1 . . Trap 104 | . . . 45 . . . . . . . 58 . . . . . . . . . . . . . . . . . . . 1 . . . . Miscellaneous . | . . . . . . . . . . . . . . . . . . . . . . . . . . . . . . . . . . . . Route ------- -11/Scrapyard -10/Materials (discovered 2 exits: *Mat / *Min) -10/Mines (discovered 2 exits: *Mat x2) -9/Materials (discovered 3 exits: *Mat / *Min x2) -9/Mines (discovered 3 exits: *Mat x2 / *Exi) -9/Exiles -8/Mines -8/Materials (discovered 2 exits: Sto / Gar) -8/Garrison (discovered 3 exits: *Mat x3) -8/Materials (discovered 5 exits: *Fac x3 / *Sto / Gar) -8/Garrison (discovered 3 exits: *Fac x3) -7/Factory (discovered 2 exits: [*Low] / Gar) -7/Garrison (discovered 3 exits: *Fac x3) -7/Factory -7/Garrison (discovered 3 exits: *Fac x3) -6/Factory (discovered 2 exits: [*Low] / Gar) -6/Garrison (discovered 3 exits: *Fac x3) -5/Factory -5/Waste -5/Factory -5/Garrison (discovered 3 exits: *Fac x3) -5/Factory -5/Upper Caves -5/Upper Caves (discovered 2 exits: Fac / *Zhi) -5/Zhirov -4/Proximity Caves -4/Factory (discovered 2 exits: Res / Gar) -4/Garrison (discovered 3 exits: *Res x3) -3/Research -3/Garrison (discovered 4 exits: *Res x3 / [Res]) -2/Research (discovered 2 exits: *Qua / Gar) -2/Garrison -2/Quarantine -2/Section 7 (discovered 2 exits: *Acc / Gar) -1/Access -1/Command History --------- Turn | Location | Event 6 | -11/Scrapyard | Discovered new exit (range 3) 19 | -11/Scrapyard | Entered Materials 314 | -10/Materials | Build established: Mutant 831 | -10/Materials | Discovered new exit (range 6) 1048 | -10/Materials | Discovered new exit (range 13) 1428 | -10/Materials | Entered Mines 1432 | -10/Mines | Joined a pair of Derelicts in attacking an 0b10 outpost 1534 | -10/Mines | Assembled infested the area 1539 | -10/Mines | Assisted by a Guerilla fighting off Assembled 2146 | -10/Mines | Discovered new exit (range 15) 2322 | -10/Mines | Found the Drone Emporium 2333 | -10/Mines | Found Prototype Device 2333 | -10/Mines | Identified Splice Drone Bay 2706 | -10/Mines | Received a Rocket Launcher from a helpful Derelict 2729 | -10/Mines | Discovered new exit (range 9) 3012 | -10/Mines | Entered Materials 3012 | -9/Materials | Evolved 2 slots: Propulsion x1, Utility x1 3304 | -9/Materials | Build established: Scavenger-Mutant 4689 | -9/Materials | Identified exit to Mines 4895 | -9/Materials | Discovered new exit (range 7) 5478 | -9/Materials | Entered Mines 5626 | -9/Mines | Discovered new exit (range 9) 5699 | -9/Mines | Learned location of Zion (-6) 5963 | -9/Mines | Discovered new exit (range 5) 6203 | -9/Mines | Deemed a non-threat by the Exiles lab entrance 6294 | -9/Mines | A weapon hastily lodged in a ceiling crevice suddenly fell to the ground 6545 | -9/Mines | Assisted by bots powering up and referring to "LRC-V3" 7135 | -9/Mines | Discovered new exit (range 5) 7156 | -9/Mines | Entered Exiles 7156 | -9/Exiles | Accompanied by 4 allies 7219 | -9/Exiles | Met 8R-AWN 7260 | -9/Exiles | Met EX-HEX 7351 | -9/Exiles | Met EX-DEC 7462 | -9/Exiles | Met EX-BIN 7538 | -9/Exiles | Aligned with FarCom system 7540 | -9/Exiles | Given EX-Vault access code 7596 | -9/Exiles | Opened EX-Vault 7614 | -9/Exiles | Found Longsword +1 7629 | -9/Exiles | Found Deploy-a-Sentry 7676 | -9/Exiles | Warned to stay clear of 0b10 Research branches 7834 | -9/Exiles | Discovered new exit (range 10) 8658 | -9/Exiles | Attacked by the Exiles 8806 | -9/Exiles | Destroyed 8R-AWN 8813 | -9/Exiles | Found 8R-AWN's Boregun 8831 | -9/Exiles | Lost 7 parts (3n3u1w) 8835 | -9/Exiles | Found Exp. Targeting Computer 8908 | -9/Exiles | DAS Turret deployed 9051 | -9/Exiles | Build established: Mutant 9187 | -9/Exiles | Destroyed EX-HEX 9248 | -9/Exiles | Destroyed EX-BIN 9305 | -9/Exiles | Core integrity fell below 50% 9313 | -9/Exiles | Destroyed EX-DEC 9341 | -9/Exiles | Lost 8 parts (1p3n4w) 9644 | -9/Exiles | Build established: Scavenger-Mutant 9971 | -9/Exiles | Entered Mines 10477 | -8/Mines | Core integrity fell below 20% 10637 | -8/Mines | Discovered new exit (range 6) 10911 | -8/Mines | Entered Materials 10911 | -8/Materials | Evolved 2 slots: Utility x1, Weapon x1 10958 | -8/Materials | Identified exit to Storage 11201 | -8/Materials | Build established: Scavenger-Tank 11339 | -8/Materials | Identified exit to Garrison 11415 | -8/Materials | Entered Garrison 11415 | -8/Garrison | Accompanied by 2 allies 11476 | -8/Garrison | Triggered checkpoint 11615 | -8/Garrison | Triggered checkpoint 11671 | -8/Garrison | Build established: Scavenger-Gunner 11766 | -8/Garrison | Triggered checkpoint 11803 | -8/Garrison | Discovered new exit (range 32) 11803 | -8/Garrison | Discovered new exit (range 61) 11803 | -8/Garrison | Discovered new exit (range 40) 12016 | -8/Garrison | Triggered checkpoint 12136 | -8/Garrison | Triggered checkpoint 12193 | -8/Garrison | Installed Relay Interface Framework 12217 | -8/Garrison | Garrison Relay disabled 12302 | -8/Garrison | Entered Materials 12921 | -8/Materials | Discovered exit to Storage (range 3) 13089 | -8/Materials | Central database locked down 13142 | -8/Materials | Discovered new exit (range 14) 13620 | -8/Materials | Repaired Adv. Weapon Cycler 13886 | -8/Materials | Discovered new exit (range 14) 14223 | -8/Materials | Discovered new exit (range 12) 14476 | -8/Materials | Identified exit to Garrison 14531 | -8/Materials | Entered Garrison 14531 | -8/Garrison | Accompanied by 3 allies 14588 | -8/Garrison | Triggered checkpoint 14629 | -8/Garrison | Garrison Relay disabled 14780 | -8/Garrison | Triggered checkpoint 14940 | -8/Garrison | Triggered checkpoint 14969 | -8/Garrison | Destroyed 7 combat bots 15007 | -8/Garrison | Discovered new exit (range 3) 15035 | -8/Garrison | Expanded RIF knowledge: Structural Interface 15111 | -8/Garrison | Garrison Relay disabled 15134 | -8/Garrison | Discovered new exit (range 51) 15134 | -8/Garrison | Discovered new exit (range 63) 15134 | -8/Garrison | Discovered new exit (range 29) 15359 | -8/Garrison | Rescued a captive Derelict 15622 | -8/Garrison | Spotted B-75 Beast 15961 | -8/Garrison | Entered Factory 15961 | -7/Factory | Evolved 2 slots: Propulsion x1, Utility x1 16541 | -7/Factory | Discovered new exit (range 13) 16625 | -7/Factory | Fabricated Imp. Heavy Armor Plating? 16812 | -7/Factory | Fabricated M-13 Machinist? 16901 | -7/Factory | Identified exit to Garrison 16901 | -7/Factory | Entered Garrison 16901 | -7/Garrison | Accompanied by 1 ally 16919 | -7/Garrison | Found embedded Infiltrators 17026 | -7/Garrison | Triggered checkpoint 17094 | -7/Garrison | Triggered checkpoint 17124 | -7/Garrison | Triggered checkpoint 17218 | -7/Garrison | Discovered new exit (range 10) 17536 | -7/Garrison | Triggered checkpoint 17644 | -7/Garrison | Triggered checkpoint 17764 | -7/Garrison | Rescued a captive Derelict 17774 | -7/Garrison | Rescued a captive Derelict 17812 | -7/Garrison | Discovered new exit (range 12) 17911 | -7/Garrison | Expanded RIF knowledge: Zone Cloak 18044 | -7/Garrison | Triggered checkpoint 18372 | -7/Garrison | Triggered checkpoint 18774 | -7/Garrison | Discovered new exit (range 11) 18799 | -7/Garrison | Entered Factory 19372 | -7/Factory | Fabricated Y-54 Guardian (x2) 19455 | -7/Factory | Fabricated M-13 Machinist (x1) 19727 | -7/Factory | Identified exit to Garrison 19754 | -7/Factory | Cargo convoy interrupted 19792 | -7/Factory | Destroyed 9 combat bots 19849 | -7/Factory | Entered Garrison 19849 | -7/Garrison | Accompanied by 1 ally 19865 | -7/Garrison | Found embedded Infiltrators 20082 | -7/Garrison | Triggered checkpoint 20484 | -7/Garrison | Triggered checkpoint 20494 | -7/Garrison | Build established: Bothacker-Gunner 20629 | -7/Garrison | Discovered new exit (range 12) 20632 | -7/Garrison | Triggered checkpoint 20690 | -7/Garrison | Triggered checkpoint 21086 | -7/Garrison | Triggered checkpoint 21208 | -7/Garrison | Build established: Scavenger-Gunner 21312 | -7/Garrison | Triggered checkpoint 21315 | -7/Garrison | Garrison Relay disabled 21377 | -7/Garrison | Discovered new exit (range 13) 21628 | -7/Garrison | Build established: Bothacker-Gunner 21724 | -7/Garrison | Expanded RIF knowledge: Zone Cloak 21760 | -7/Garrison | Triggered checkpoint 21764 | -7/Garrison | Discovered new exit (range 10) 21784 | -7/Garrison | Entered Factory 21784 | -6/Factory | Evolved 2 slots: Utility x2 21826 | -6/Factory | Discovered new exit (range 13) 21863 | -6/Factory | Identified exit to Garrison 21897 | -6/Factory | Entered Garrison 21897 | -6/Garrison | Accompanied by 3 allies 22050 | -6/Garrison | Triggered checkpoint 22146 | -6/Garrison | Spotted B-75 Beast 22170 | -6/Garrison | Triggered checkpoint 22170 | -6/Garrison | Triggered checkpoint 22263 | -6/Garrison | Destroyed B-75 Beast 22402 | -6/Garrison | Discovered new exit (range 12) 22408 | -6/Garrison | Triggered checkpoint 22420 | -6/Garrison | Garrison Relay disabled 22476 | -6/Garrison | Spotted B-75 Beast 22484 | -6/Garrison | Rewired B-90 Cyclops 22489 | -6/Garrison | Rewired B-90 Cyclops 22498 | -6/Garrison | Allies destroyed B-75 Beast 22816 | -6/Garrison | Triggered checkpoint 22838 | -6/Garrison | Triggered checkpoint 23073 | -6/Garrison | Discovered new exit (range 11) 23183 | -6/Garrison | Expanded RIF knowledge: Hotswap 23229 | -6/Garrison | Spotted Striker 23273 | -6/Garrison | Destroyed Cyclops 5a 23314 | -6/Garrison | Destroyed Striker 23655 | -6/Garrison | Discovered new exit (range 60) 23655 | -6/Garrison | Discovered new exit (range 51) 23655 | -6/Garrison | Discovered new exit (range 8) 24142 | -6/Garrison | Entered Factory 24142 | -5/Factory | Accompanied by 1 ally 24142 | -5/Factory | Evolved 2 slots: Power x1, Propulsion x1 25700 | -5/Factory | Sucked down chute 25700 | -5/Factory | Entered Waste 25701 | -5/Waste | Met a frightened Derelict 25715 | -5/Waste | EMP discharged 25715 | -5/Waste | System corruption reached 10% 25715 | -5/Waste | Spotted C-40 Crusher 25753 | -5/Waste | Spotted C-40 Crusher 25763 | -5/Waste | Spotted C-40 Crusher 25763 | -5/Waste | Spotted C-40 Crusher 25769 | -5/Waste | Spotted C-40 Crusher 25788 | -5/Waste | Spotted C-40 Crusher 25798 | -5/Waste | Allies destroyed C-40 Crusher 25805 | -5/Waste | Found Damper Plating 25815 | -5/Waste | EMP discharged 25833 | -5/Waste | Discovered new exit (range 16) 25915 | -5/Waste | EMP discharged 26015 | -5/Waste | EMP discharged 26082 | -5/Waste | Entered Factory 26212 | -5/Factory | Repaired Enh. Coil Gun? 26386 | -5/Factory | Repaired Arm. Heavy Treads? 27224 | -5/Factory | Build established: Scavenger-Gunner 27554 | -5/Factory | Identified exit to Garrison 27566 | -5/Factory | Entered Garrison 27566 | -5/Garrison | Accompanied by 1 ally 27593 | -5/Garrison | Garrison Relay disabled 27662 | -5/Garrison | Triggered checkpoint 27879 | -5/Garrison | Spotted B-75 Beast 27914 | -5/Garrison | Triggered checkpoint 27929 | -5/Garrison | Triggered checkpoint 27937 | -5/Garrison | Triggered checkpoint 28048 | -5/Garrison | Destroyed B-75 Beast 28201 | -5/Garrison | Discovered new exit (range 3) 28328 | -5/Garrison | Heavy support dispatched to Factory 28434 | -5/Garrison | Triggered checkpoint 28472 | -5/Garrison | Triggered checkpoint 28478 | -5/Garrison | Triggered checkpoint 28550 | -5/Garrison | Found embedded Infiltrators 28589 | -5/Garrison | Build established: Scavenger-Tank 28655 | -5/Garrison | Triggered checkpoint 28787 | -5/Garrison | Expanded RIF knowledge: Patrol Navigation 28846 | -5/Garrison | Discovered new exit (range 12) 28850 | -5/Garrison | Triggered checkpoint 28924 | -5/Garrison | Destroyed B-75 Beast 29035 | -5/Garrison | Spotted B-75 Beast 29075 | -5/Garrison | Destroyed B-75 Beast 29124 | -5/Garrison | Heavy support dispatched to Factory 29127 | -5/Garrison | Rewired B-90 Cyclops 29342 | -5/Garrison | Triggered checkpoint 29413 | -5/Garrison | Heavy support dispatched to Factory 29418 | -5/Garrison | H-XX Assembler disabled 29459 | -5/Garrison | Lost 4 parts (4u) 29595 | -5/Garrison | Discovered new exit (range 16) 29900 | -5/Garrison | Entered Factory 29900 | -5/Factory | Accompanied by 1 ally 30200 | -5/Factory | First assault squad dispatched 30285 | -5/Factory | Found Hvy. Reactive Plating 30292 | -5/Factory | Found Hvy. Reactive Plating 30390 | -5/Factory | Build established: Bothacker-Gunner 30599 | -5/Factory | Fabricated Rnf. Quantum Reactor? 30640 | -5/Factory | Discovered new exit (range 9) 30745 | -5/Factory | Entered Upper Caves 30745 | -5/Upper Caves | Accompanied by 3 allies 30779 | -5/Upper Caves | Identified exit to Upper Caves 31363 | -5/Upper Caves | Entered another Upper Caves area 31363 | -5/Upper Caves | Accompanied by 3 allies 32008 | -5/Upper Caves | Identified exit to Factory 32107 | -5/Upper Caves | Learned location of 1 exit from Factory 32203 | -5/Upper Caves | Discovered new exit (range 17) 32269 | -5/Upper Caves | Entered Zhirov 32269 | -5/Zhirov | Accompanied by 3 allies 32269 | -5/Zhirov | Discovered new exit (range 3) 32301 | -5/Zhirov | Met Zhirov 32363 | -5/Zhirov | Learned location of Quarantine (-2) 32363 | -5/Zhirov | Learned location of Testing (-3) 32363 | -5/Zhirov | Learned location of Command (-1) 32373 | -5/Zhirov | Zhirov requested help retrieving the SGEMP Prototype 32400 | -5/Zhirov | Found Alien Artifact 32400 | -5/Zhirov | Identified Integrated Reactor 32400 | -5/Zhirov | Installed Integrated Reactor, increased core energy generation (+10) 32485 | -5/Zhirov | Found Alien Artifact 32557 | -5/Zhirov | Entered Proximity Caves 32557 | -4/Proximity Caves | Accompanied by 3 allies 32677 | -4/Proximity Caves | Attracted the attention of an 0b10 outpost 33069 | -4/Proximity Caves | Build established: Commander-Tank 33236 | -4/Proximity Caves | Learned Research machine intel 33665 | -4/Proximity Caves | Build established: Commander-Gunner 34590 | -4/Proximity Caves | Spotted B-86 Titan 34688 | -4/Proximity Caves | Snuck into a huge 0b10 base via the rear entrance 34786 | -4/Proximity Caves | Build established: Commander-Tank 35312 | -4/Proximity Caves | Discovered exit to Factory (range 5) 35628 | -4/Proximity Caves | Fabricated Huge Storage Unit (x1) 36068 | -4/Proximity Caves | Entered Factory 36068 | -4/Factory | Accompanied by 11 allies 36068 | -4/Factory | Evolved 2 slots: Utility x2 36069 | -4/Factory | Identified exit to Research 36440 | -4/Factory | Identified exit to Garrison 36502 | -4/Factory | Entered Garrison 36502 | -4/Garrison | Accompanied by 11 allies 36628 | -4/Garrison | Triggered checkpoint 36652 | -4/Garrison | Spotted B-86 Titan 36652 | -4/Garrison | Spotted B-86 Titan 36684 | -4/Garrison | Triggered checkpoint 36774 | -4/Garrison | Triggered checkpoint 36974 | -4/Garrison | Discovered exit to Research (range 11) 37054 | -4/Garrison | Triggered checkpoint 37066 | -4/Garrison | Garrison Relay disabled 37093 | -4/Garrison | Spotted Striker 37093 | -4/Garrison | Spotted Striker 37128 | -4/Garrison | Destroyed Striker 37176 | -4/Garrison | Found Adv. Powered Armor 37180 | -4/Garrison | Found Adv. Powered Armor 37182 | -4/Garrison | Found Adv. Powered Armor 37233 | -4/Garrison | Spotted B-86 Titan 37257 | -4/Garrison | Found Unknown Device 37257 | -4/Garrison | Identified Adv. Force Booster 37392 | -4/Garrison | Triggered checkpoint 37393 | -4/Garrison | Triggered checkpoint 37506 | -4/Garrison | Lost 4 parts (1n2u1w) 37632 | -4/Garrison | Triggered checkpoint 37806 | -4/Garrison | Spotted B-86 Titan 37848 | -4/Garrison | Triggered checkpoint 38005 | -4/Garrison | Triggered checkpoint 38033 | -4/Garrison | Discovered exit to Research (range 7) 38104 | -4/Garrison | Spotted B-86 Titan 38416 | -4/Garrison | Discovered exit to Research (range 12) 38436 | -4/Garrison | Expanded RIF knowledge: Code Merge 38652 | -4/Garrison | Build established: Bothacker-Tank 38861 | -4/Garrison | P-70 Sage assimilated allied 17-CCP(b) 38900 | -4/Garrison | Destroyed B-86 Titan 38904 | -4/Garrison | P-70 Sage assimilated allied Sentinel 7g 38934 | -4/Garrison | System corruption reached 10% 38954 | -4/Garrison | Found Relay Coupler [Proto] 38956 | -4/Garrison | Found Relay Coupler [Proto] 38959 | -4/Garrison | Found Relay Coupler [Proto] 38962 | -4/Garrison | Found Relay Coupler [Proto] 39076 | -4/Garrison | Garrison Relay disabled 39093 | -4/Garrison | Garrison Relay disabled 39207 | -4/Garrison | Entered Research 39207 | -3/Research | Evolved 2 slots: Propulsion x1, Utility x1 39208 | -3/Research | Loaded intel: 111 machine locations 39226 | -3/Research | Identified exit to Garrison 39451 | -3/Research | Fabricated M-13 Machinist? 39457 | -3/Research | First assault squad dispatched 39488 | -3/Research | Entered Garrison 39488 | -3/Garrison | Discovered recently destroyed garrison 39488 | -3/Garrison | Accompanied by 4 allies 39524 | -3/Garrison | Discovered new exit (range 66) 39524 | -3/Garrison | Discovered new exit (range 87) 39524 | -3/Garrison | Discovered new exit (range 65) 39524 | -3/Garrison | Discovered new exit (range 73) 39551 | -3/Garrison | Garrison Relay disabled 39821 | -3/Garrison | Found Adv. Powered Armor 39825 | -3/Garrison | Found Adv. Powered Armor 39831 | -3/Garrison | Found Adv. Powered Armor 39966 | -3/Garrison | Build established: Botlord-Mutant 40181 | -3/Garrison | Expanded RIF knowledge: Autooverride 40516 | -3/Garrison | Entered Research 40516 | -2/Research | Accompanied by 8 allies 40516 | -2/Research | Evolved 2 slots: Utility x2 40880 | -2/Research | P-80 Master assimilated allied Veteran 8c 41050 | -2/Research | Discovered new exit (range 12) 41108 | -2/Research | Spotted B-90 Cyclops 41194 | -2/Research | Allies destroyed B-90 Cyclops 41266 | -2/Research | First assault squad dispatched 41590 | -2/Research | Identified exit to Garrison 41693 | -2/Research | Spotted B-90 Cyclops 41734 | -2/Research | Destroyed B-90 Cyclops 41909 | -2/Research | Entered Garrison 41909 | -2/Garrison | Accompanied by 3 allies 41940 | -2/Garrison | Triggered checkpoint 42010 | -2/Garrison | Garrison Relay disabled 42100 | -2/Garrison | Spotted B-90 Cyclops 42108 | -2/Garrison | Rewired B-75 Beast 42114 | -2/Garrison | Rewired B-86 Titan 42116 | -2/Garrison | Destroyed B-90 Cyclops 42178 | -2/Garrison | Triggered checkpoint 42184 | -2/Garrison | Triggered checkpoint 42186 | -2/Garrison | Triggered checkpoint 42560 | -2/Garrison | Discovered new exit (range 11) 42565 | -2/Garrison | Build established: Botlord-Tank 42632 | -2/Garrison | Triggered checkpoint 42669 | -2/Garrison | Garrison Relay disabled 42707 | -2/Garrison | Expanded RIF knowledge: Alert ID Control 42871 | -2/Garrison | Entered Quarantine 42871 | -2/Quarantine | Accompanied by 1 ally 42946 | -2/Quarantine | Build established: Botlord-Mutant 43297 | -2/Quarantine | Found Alien Slashing Weapon 43297 | -2/Quarantine | Identified Sigix Broadsword 43359 | -2/Quarantine | Lost 3 parts (2u1w) 43668 | -2/Quarantine | Found Prototype Device 43677 | -2/Quarantine | Identified Exp. Thermal Shield 43856 | -2/Quarantine | Spotted Fortress 43860 | -2/Quarantine | Assimilated Fortress with formatsys_high 43871 | -2/Quarantine | First assault squad dispatched 43982 | -2/Quarantine | Discovered new exit (range 5) 44149 | -2/Quarantine | Entered Section 7 44149 | -2/Section 7 | Accompanied by 1 ally 44177 | -2/Section 7 | Found Alien Artifact 44177 | -2/Section 7 | Identified Integrated Dissipator 44177 | -2/Section 7 | Installed Integrated Dissipator, increased core heat dissipation (+20) 44198 | -2/Section 7 | Spotted B-90 Cyclops 44369 | -2/Section 7 | Identified exit to Garrison 44537 | -2/Section 7 | Garrison activated, responded to threat 44636 | -2/Section 7 | Found Alien Artifact 44636 | -2/Section 7 | Identified Microwarp Drive 44852 | -2/Section 7 | Spotted Alpha 7 44862 | -2/Section 7 | Spotted Alpha 7 44883 | -2/Section 7 | Hijacked Alpha 7 control node with streamctrl_high 44898 | -2/Section 7 | Spotted B-99 Colossus 44899 | -2/Section 7 | First assault squad dispatched 44912 | -2/Section 7 | Scanned by Researcher 44913 | -2/Section 7 | Lost 3 parts (2u1w) 44932 | -2/Section 7 | Found Integrated Reactor 44932 | -2/Section 7 | Installed Integrated Reactor, increased core energy generation (+10) 44934 | -2/Section 7 | Found Integrated Reactor 44934 | -2/Section 7 | Installed Integrated Reactor, increased core energy generation (+10) 44937 | -2/Section 7 | Found Integrated Reactor 44937 | -2/Section 7 | Installed Integrated Reactor, increased core energy generation (+10) 44977 | -2/Section 7 | Found Alien Artifact 44977 | -2/Section 7 | Identified LRC Energy Well 44977 | -2/Section 7 | Installed LRC Energy Well, increased energy storage capacity (+250) 44984 | -2/Section 7 | Found Alien Artifact 44984 | -2/Section 7 | Identified LRC Matter Compressor 44984 | -2/Section 7 | Installed LRC Matter Compressor, increased matter storage capacity (+125) 44987 | -2/Section 7 | Found Alien Artifact 44987 | -2/Section 7 | Identified LRC Storage 44987 | -2/Section 7 | Installed LRC Storage, increased inventory capacity (+2) 45041 | -2/Section 7 | System corruption reached 10% 45289 | -2/Section 7 | Build established: Hauler-Mutant 45402 | -2/Section 7 | Found Alien Reactor 45402 | -2/Section 7 | Identified Matter Drive 45425 | -2/Section 7 | Found Alien Artifact 45430 | -2/Section 7 | Found Alien Artifact 45432 | -2/Section 7 | Found Alien Artifact 45436 | -2/Section 7 | Found Alien Artifact 45447 | -2/Section 7 | Intercept squad dispatched 45447 | -2/Section 7 | Found Alien Artifact 45450 | -2/Section 7 | Found Alien Artifact 45464 | -2/Section 7 | Spotted Tracker 45465 | -2/Section 7 | Spotted Tracker 45483 | -2/Section 7 | Identified Hpw. Transdimensional Reconstructor 45483 | -2/Section 7 | Warped through subspace 45484 | -2/Section 7 | Core integrity fell below 50% 45490 | -2/Section 7 | Found Alien Artifact 45490 | -2/Section 7 | Identified Terrabomb (x3) 45490 | -2/Section 7 | Used Terrabomb 45492 | -2/Section 7 | Identified Transdimensional Reconstructor (x4) 45492 | -2/Section 7 | Warped through subspace 45524 | -2/Section 7 | Spotted Combat Programmer 45525 | -2/Section 7 | Spotted Combat Programmer 45526 | -2/Section 7 | Spotted Executioner 45526 | -2/Section 7 | Spotted Executioner 45552 | -2/Section 7 | Warped through subspace 45566 | -2/Section 7 | Discovered new exit (range 14) 45576 | -2/Section 7 | Entered Access 45576 | -1/Access | Evolved 2 slots: Propulsion x1, Utility x1 45592 | -1/Access | Found Unknown Device 45592 | -1/Access | Identified Quantum Capacitor 45608 | -1/Access | Identified exit to Command 45826 | -1/Access | First assault squad dispatched 46173 | -1/Access | Lost 6 parts (1p3u2w) 46283 | -1/Access | Found Adv. Force Booster 46570 | -1/Access | Build established: Hauler-Gladiator 46585 | -1/Access | Entered Command 47072 | -1/Command | System corruption reached 10% 47134 | -1/Command | Spotted B-99 Colossus 47318 | -1/Command | Found Prototype Device 47318 | -1/Command | Identified Exp. Actuator Array 47335 | -1/Command | First assault squad dispatched 47562 | -1/Command | Destroyed 12 combat bots 47860 | -1/Command | Build established: Scavenger-Mutant 48099 | -1/Command | Spotted Combat Programmer 48184 | -1/Command | Met MAIN.C 48200 | -1/Command | 0b10 Conduit disabled 48261 | -1/Command | System corruption reached 30% 48271 | -1/Command | Core integrity fell below 50% 48281 | -1/Command | Used Terrabomb 48288 | -1/Command | Spotted B-99 Colossus 48289 | -1/Command | MAIN.C activated Command garrisons 48376 | -1/Command | Core integrity fell below 20% 48382 | -1/Command | Lost 26 parts (3p8n10u5w) 48408 | -1/Command | Failed to warp due to unstable space 48419 | -1/Command | Destroyed by S-43 Plague with Heavy Machine Gun Last Messages --------------- 48384_ Terminal disabled. 48384_ Microwarped (distance 4). 48384_ Door malfunctions. 48385_ Microwarped (distance 3). 48386_ Microwarped (distance 10). 48391_ System corrupted: Energy discharge (-98). 48391_ Acquired Q-thruster. 48393_ C-30 ARC bursts open, deploying its payload. 48393_ G-73 Enforcer unfolds itself. 48393_ Microwarp Drive destroyed. 48395_ Door malfunctions. 48401_ RIF reveals location of hidden door. 48404_ Adv. Target Analyzer destroyed. 48404_ P-80 Master resets S-43 Plague, system corruption cleaned. 48405_ Q-thruster destroyed. 48405_ Door malfunctions. 48407_ System corrupted: Substantial component data lost. 48408_ Warp failed due to unstable space. 48413_ Exp. Targeting Computer destroyed. 48418_ P-80 Master resets S-43 Plague, system corruption cleaned. Map ----- +----------------------------------------------------+ | ?????????????????????????????????????????????????? | | ?????????????????????????????????????????????????? | | ?????????????????????????????????????????????????? | | ?????????????????????????????????????????????????? | | ?????????????????????????????????????????????????? | | ?????????????????????????????????????????????????? | | ?????????????????????????????????????????????????? | | ?????????????????????????????????????????????????? | | ?????????????????????????????????????????????????? | | ?????????????????????????????????????????????????? | | ?????????????????????????????????????????????????? | | ?????????????????????????????????????????????????? | | ?????????????????????????????????????????????????? | | ?????????????????????????????????????????????????? | | ?????????????????????????????????????????????????? | | ?????????????????????????????????????????????????? | | ?????????????????????????????????????????????????? | | ?????????????????????????????????????????????????? | | ?????????????????????????????????????????????????? | | ?????????????????########????????????????????????? | | ?????????????????# #????????????????????????? | | ?????????????????# p ##???????????????????????? | | ?????????????????# "" s"#???????????????????????? | | ???????????????### ""ss####?????????????????????? | | ???????????????# + Y" ; #?????????????????????? | | ???????????????# #g ""s ;@ #?????????????????????? | | ???????????????# # p""s ; ##?????????????????????? | | ???????????????#?# gp ###??????????????????????? | | ???????????????#?# s #????????????????????????? | | ???????????????# ##g###########??????????????????? | | ???????????????# +??????????????????? | | ???????????????#### #####??????????????????? | | ??????????????????# #?######???????????????? | | ??????????????????# #? * !#???????????????? | | ??????????????????# # #???????????????? | | ????????????#######" # #???????????????? | | ????????????# "%" + #???????????????? | | ????????????# "##### # #???????????????? | | ??????????+## #???# # #???????????????? | | ??? #???# #?+#####???????????????? | | ??? ##### #???# #? #???????????????????? | | ??????????? ?#####/##### #??#???????????????????? | | ??????????????# + #??????????????????????? | | ??????????????# #####??????????????????????? | | ?????######## # #??????????????????????????? | | ?????# + / #??????????????????????????? | | ?????# # # ! #??????????????????????????? | | ?#####"" #?#########??????????????????????????? | | "# ##"" #????????????????????????????????????? | | + ##"T #????????????????????????????????????? | +----------------------------------------------------+ Best States ------------- Heat Dissipation 110 Coolant Potential 100 Energy Generation 85 Energy Capacity 850 Matter Stores 425 Matter Capacity 425 Sight Range 22 Terrain Scan Density 10 Jamming Range 16 Cloak Strength 2 Corruption Containment 12 Armor Coverage 3200 Resistance: KI 40 Resistance: TH 30 Resistance: EX 50 Resistance: EM 90 Core Shielding 30 Weapon Shielding 90 Weapon Cycling 25 Phase Shifting 15 Evasion (%) 70 Targeting Accuracy 24 Melee Accuracy 8 Target Analysis 12 Core Analysis 6 Armor Integrity Analysis 30 Recoil Reduction 6 Matter Filtering 50 Force Boost 40 Offensive Hacking 14 Defensive Hacking 7 Relay Coupler Types 4 Relay Coupler Value 76 Authchip Count 3 Item Schematics ----------------- Huge Storage Unit | -10/Materials | Hacked Med. Reactive Plating | -8/Materials | Scanalyzed Rnf. Fission Core | -8/Materials | Scanalyzed Assault Drone Bay | -5/Zhirov | Free Exp. Heat Sink | -5/Zhirov | Free Exp. Optical Array | -5/Zhirov | Free Imp. Arc Thrower | -5/Zhirov | Free Stealth Drone Bay | -2/Quarantine | Archive Diametric Drive | -2/Quarantine | Archive Centrium Light Armor Plating | -2/Quarantine | Archive Robot Schematics ------------------ M-13 Machinist | -10/Mines | Hacked W-44 Eye | -2/Quarantine | Archive A-15 Conveyor | -2/Quarantine | Archive Fabricated ------------ Imp. Heavy Armor Plating | x1 | -7/Factory | Preloaded M-13 Machinist | x1 | -7/Factory Y-54 Guardian | x2 | -7/Factory | Preloaded M-13 Machinist | x1 | -7/Factory | Authchip Rnf. Quantum Reactor | x2 | -5/Factory | Preloaded Huge Storage Unit | x1 | -4/Proximity Caves M-13 Machinist | x1 | -3/Research Alien Tech Used ----------------- Integrated Reactor Sigix Broadsword Integrated Dissipator Microwarp Drive LRC Energy Well LRC Matter Compressor LRC Storage Matter Drive High-powered Transdimensional Reconstructor Terrabomb Transdimensional Reconstructor Achievements -------------- None Challenges ------------ None Game ------ Seed RiotDecoyRefractor Manual? 0 Play Time 05:27:24 Cumulative 1216.1 hours Start 2022.10.08 @ 17:28:33 End 2022.10.09 @ 13:17:50 Sessions 9 Manual Loads 0 Difficulty Rogue Special Mode None Game No. 838 Rogue 834 Adventurer 4 Explorer 0 Win Type - Total 131 Types 100/9/8/5/2/0/1/4/2 Lore% 94 Gallery% 98 Achievement% 98 Wizard Run 0 Options --------- ASCII 0 Keyboard 1 Movement Vi Keybinds 0 Fullscreen 0 Font 20/X11 Map View 76x50 Tactical HUD 1 Map Filters NONE Filters NONE Steam 1 RUN: f8cb96d1-ab6c-483c-a917-590eca8d7b21